{"text_format":"1","workbook":"xlsx","n_sheets":3,"sheets":["一覧表から検索","地域、区分から検索","地域、区分検索結果"],"not_rendered":{"charts":0,"images":2,"macros":1,"external_links":3,"defined_names":9,"comments":2,"pivot_tables":0},"unopened":[],"bounds":{"document_bytes":16777216,"sheet_cells":100000,"rows_first":2000,"rows_last":500,"rows_between":2000,"halvings":0,"cell_chars":16384,"cell_head_chars":4096},"cells_cut":0,"cells_raw":0,"read":"whole","date_system":"1900"}

{"sheet":"一覧表から検索","index":0,"n_rows":201,"n_cols":19,"rows_kept":201,"cut":false,"hidden":false,"merged":[[0,12,0,13],[13,3,14,3],[13,4,13,5],[2,0,2,13],[3,1,3,11],[5,0,5,13],[7,1,7,3],[13,18,14,18],[13,16,14,16],[13,17,14,17],[8,1,8,3],[4,1,4,11],[13,10,14,10],[13,11,14,11],[13,12,14,12],[13,13,14,13],[10,0,10,13],[11,0,11,13],[12,0,12,13],[13,6,13,9],[13,0,14,0],[13,1,14,1],[13,2,14,2]]}
[null,null,null,null,null,null,null,null,null,null,null,null,"東京航空局"]
[]
["令和２年度　発注の見通しの公表について(令和２年７月現在）【工事】"]
[]
[]
["  東京航空局における令和２年度の発注の見通しについて、下記のとおり公表します。\n  実際に発注する案件がこの掲載と異なる場合、ここに掲載されない案件が発注される場合があります。"]
[]
["概要：","令和２年７月１日現在の計画等"]
["分類：","工事"]
[]
["１．当該月の計画又は実施案件：■（セルを緑系網掛で表示）"]
["２．新規に追加した案件　　　：■（セルを黄色系網掛で表示）なお、新規案件が当該月の計画又は実施案件の予定の場合は緑系網掛で表示"]
["３．修正した項目　　　　　　：赤文字又は取消し線（削除のみの場合）"]
["ＮＯ","官署名","入札方式等","計画名称等","工事の場所",null,"計画時期",null,null,null,"計画工事種別","工事の概要","参考\n（入札予定時期）","参考\n（公告予定時期）",null,null,"選定案件","課室名","事情により「期間（目安）」を手入力する場合"]
[null,null,null,null,"都道府県","都道府県・区・市町村\n空港名等の場所","自","至","期間\n（目安）"]
[1,"東京航空局","一般競争","三沢空港除雪ゲート改修工事","青森県","青森県三沢市\n三沢空港","2020-08-01","2020-12-01",{"$f":"IF(S16>0,S16,DATEDIF(G16,H16,\"M\")+1)","v":5},{"$f":"IF(S16>0,\"※\",\"\")","v":""},"土木工事","三沢空港の除雪ゲート改修","第2四半期","第2四半期",null,null,null,"土建課"]
[{"$f":"A16+1","v":2},"東京航空局","一般競争","東京国際空港下水道管路改修工事","東京都","東京都大田区\n東京国際空港","2020-12-01","2022-03-01",16,"","土木工事","東京国際空港のＮ地区の雨水排水管路の老朽化更新及び雨水貯留施設新設等","第3四半期","第2四半期",null,null,null,"土建課"]
[{"$f":"A17+1","v":3},"東京航空局","一般競争","東京国際空港Ａ誘導路等舗装改修工事","東京都","東京都大田区\n東京国際空港","2020-09-01","2021-03-01",7,"","ほ装工事","東京国際空港のＡ誘導路等の舗装改修","第2四半期","第2四半期",null,null,null,"土建課"]
[4,"東京航空局","一般競争","新潟空港雨水排水管土砂撤去等工事","新潟県","新潟県新潟市\n新潟空港","2020-08-01","2021-01-01",6,"","土木工事","新潟空港の雨水排水管の土砂撤去等","第2四半期","第2四半期",null,null,null,"土建課"]
[5,"東京航空局","一般競争","東京国際空港ＧＳＥ通路改良工事","東京都","東京都大田区\n東京国際空港","2020-12-01","2021-03-01",4,"","土木工事","東京国際空港のＧＳＥ車両自動運転インフラ整備","第3四半期","第2四半期",null,null,null,"土建課"]
[6,"東京航空局","一般競争","釧路空港ＶＯＲ／ＤＭＥカウンターポイズ新設その他工事","北海道","北海道釧路市\n釧路空港","2020-08-01","2021-03-01",{"$f":"IF(S21>0,S21,DATEDIF(G21,H21,\"M\")+1)","v":7},{"$f":"IF(S21>0,\"※\",\"\")","v":"※"},"建築工事","カウンターポイズ\n規模：S造、φ30m、高さ11m\n新設工事\n旧NDB局舎\n規模：RC造／平屋建\n建築面積：96.00㎡\n内装改修、外壁改修、屋上防水改修","第2四半期","第2四半期",null,null,null,"建築室",7]
[7,"東京航空局","一般競争","横須賀ＶＯＲ／ＤＭＥカウンターポイズ解体その他工事","神奈川県","神奈川県三浦郡葉山町\n横須賀VOR/DME","2020-09-01","2021-01-01",{"$f":"IF(S22>0,S22,DATEDIF(G22,H22,\"M\")+1)","v":5},{"$f":"IF(S22>0,\"※\",\"\")","v":""},"建築工事","カウンターポイズ\n規模：S造、φ50m、高さ3.28m\n解体工事\nVOR/DME局舎\n規模：ＲＣ造　建築面積　134.40㎡\n屋上防水改修一式　建具改修","第2四半期","第2四半期",null,null,null,"建築室"]
[8,"東京航空局","一般競争","函館空港除雪車庫改修工事","北海道","北海道函館市\n函館空港","2020-09-01","2021-02-01",6,"","建築工事","除雪車庫①\n規模：RC造　平屋建　延)955.4㎡\n屋上防水、外壁改修\n除雪車庫②\n規模：RC造　平屋建　延)204㎡\n屋上防水、外壁改修、建具シャッター更新","第2四半期","第2四半期",null,null,null,"建築室"]
[9,"東京航空局","一般競争","奥尻空港ＶＯＲ／ＤＭＥ局舎改修工事","北海道","北海道奥尻郡奥尻町\n奥尻VOR/DME","2020-08-01","2021-01-01",6,"","建築工事","規模：RC造　平屋建　延)164.11㎡\n老朽化対策 一式、耐震改修 一式\n給油シャッター改修 一式","第2四半期","第2四半期",null,null,null,"建築室"]
[10,"東京航空局","一般競争","東京国際空港東側消防車庫増築工事","東京都","東京都大田区\n東京国際空港","2020-08-01","2021-03-01",8,"","建築工事","消防車庫増築\n規模：RC造　平屋建\n建築面積：180㎡\n増築、電気設備、機械設備　一式","第2四半期","第2四半期",null,null,null,"建築室"]
[11,"東京航空局","一般競争","東京国際空港貴賓室解体工事","東京都","東京都大田区\n東京国際空港","2020-08-01","2021-03-01",8,"","建築工事","貴賓室\n規模：ＲＣ造一部Ｓ造　平屋建\n建）1,614.30㎡ 延）1,303.27㎡\n解体一式","第2四半期","第2四半期",null,null,null,"建築室"]
[12,"東京航空局","一般競争","新千歳空港可搬形電源設備第２保管庫新築工事","北海道","北海道千歳市\n新千歳空港","2020-10-01","2021-03-01",6,"","建築工事","可搬形第2保管庫\n規模RC造　平屋建\n建築面積：180㎡\n新築工事一式(電気、機械設備含む)","第2四半期","第2四半期",null,null,"07-01","建築室"]
[13,"東京航空局","一般競争","稚内空港除雪車庫新築工事","北海道","北海道稚内市\n稚内空港","2021-02-01","2021-12-01",11,"","建築工事","除雪車庫新築\n規模：ＲＣ造　平屋建\n建築面積：920m2\n新築、外構、電気設備、機械設備　一式","第4四半期","第3四半期",null,null,null,"建築室"]
[14,"東京航空局","一般競争","大島ＶＯＲＴＡＣ局舎改修工事","東京都","東京都大島町\n大島VORTAC","2020-09-01","2021-02-01",6,"","建築工事","規模：ＲＣ／ＣＢ造　平屋建\n建築面積：162.30m2\n外壁、耐震（構造体）、内部（ＣＢ壁転倒防止措置）、内部ＣＢ壁転倒防止措置に伴う内装・電気設備・機械設備　一式","第2四半期","第2四半期",null,null,null,"建築室"]
[15,"東京航空局","一般競争","成田国際空港庁舎（管理棟）新築工事","千葉県","千葉県成田市\n成田国際空港","2021-01-01","2022-10-01",21,"※","建築工事","規模：ＲＣ造（一部Ｓ造）　7階建\n建築面積：746.65m2\n新築（増改築）、電気設備、機械設備　一式","第4四半期","第2四半期",null,null,null,"建築室",21]
[16,"東京航空局","一般競争","札幌航空交通管制部庁舎防水その他改修工事","北海道","北海道札幌市\n札幌航空交通管制部","2020-08-01","2020-12-01",5,"","建築工事","規模：RC造　5階建　建)3,693㎡\n屋上防水改修、内装補修　一式","第2四半期","第2四半期",null,null,null,"建築室"]
[17,"東京航空局","一般競争","坂戸マイクロ局舎外１棟改修工事","埼玉県","埼玉県鶴ヶ島市\n友部HF","2020-10-01","2021-02-01",5,"","建築工事","マイクロ局舎\n規模：RC造　平屋建　延)338.8㎡\nエンジン局舎\n規模：RC造　平屋建　延)119㎡\n屋上防水、外壁改修　一式","第3四半期","第2四半期",null,null,null,"建築室"]
[18,"東京航空局","一般競争","新潟空港除雪車庫改修工事","新潟県","新潟県新潟市\n新潟空港","2020-09-01","2021-01-01",5,"","建築工事","除雪車庫①\n規模：S造　平屋建　延)1038㎡\n除雪車庫②\n規模：S造　平屋建　延)591.05㎡\n外壁改修、建具改修　一式","第2四半期","第2四半期",null,null,null,"建築室"]
[19,"東京航空局","一般競争","佐渡空港出張所庁舎解体工事","新潟県","新潟県佐渡市\n佐渡RAG","2020-09-01","2021-01-01",5,"","建築工事","規模：CB造　2階建　建)201㎡　延)217㎡\n解体工事","第2四半期","第2四半期",null,null,null,"建築室"]
[20,"東京航空局","一般競争","いわき航空路監視レーダー事務所解体その他工事","福島県","福島県いわき市\nいわき基地","2020-09-01","2021-02-01",{"$f":"IF(S35>0,S35,DATEDIF(G35,H35,\"M\")+1)","v":6},"","建築工事","いわき航空路監視レーダー事務所\n規模：RC造　2階建\n建築面積：303.89㎡　延床面積：581.64㎡\n解体工事、電気設備、機械設備　一式\n\nいわきORSR局舎\n規模：RC造　2階建\n建築面積：216.56㎡　延床面積：441.47㎡\n防水改修一式　外壁改修一式　建具改修一式\n塗装改修一式、外構改修一式\n\nいわきVOR/DME局舎\n規模：S造　平屋建\n建築面積：140.44㎡　延床面積：140.44㎡\n防水改修一式　塗装改修一式　外構改修一式","第2四半期","第2四半期",null,null,null,"建築室"]
[21,"東京航空局","一般競争","三沢空港上久保宿舎囲障更新工事","青森県","青森県三沢市\n三沢空港","2020-09-01","2020-12-01",4,"","建築工事","敷地周囲：243ｍ\nフェンス更新　一式","第2四半期","第2四半期",null,null,null,"建築室"]
[22,"東京航空局","一般競争","蔵王山田ＶＯＲ局舎・カウンターポイズ解体工事","山形県","山形県山形市\n蔵王山田VOR","2020-08-01","2020-12-01",5,"","建築工事","VOR局舎\n規模：ＲＣ造　建築面積　141㎡\nカウンターポイズ\n規模：S造、φ30m、高さ7m\n解体工事","第2四半期","第2四半期",null,null,null,"建築室"]
[23,"東京航空局","一般競争","箱根送信局舎外３棟改修工事","神奈川県","神奈川県足柄下郡箱根町\n箱根RCAG　（送信機）","2020-09-01","2020-12-01",4,"","建築工事","送信局舎\n規模：RC造　平屋建\n建築面積　248㎡　延床面積：248㎡\n屋上防水改修一式　コロニアル屋根改修一式\n建具改修一式　電気設備改修一式\n\n受信局舎\n規模：RC造平屋建　\n建築面積：33.28㎡　延床面積：33.28㎡\n屋上防水改修一式　電気設備改修一式\n\nマイクロ局舎\n規模：RC造　平屋建\n建築面積：53.67㎡　延床面積：53.67㎡\n屋上防水改修一式　電気設備改修一式\n\nARSR局舎\n規模：RC造　平屋建\n建築面積：335.29㎡　延床面積　335.29㎡\n建具改修一式　電気設備改修一式","第2四半期","第2四半期",null,null,null,"建築室"]
[24,"東京航空局","一般競争","新千歳空港春日寮外壁改修工事","北海道","北海道千歳市\n春日寮","2020-09-01","2020-12-01",4,"","建築工事","春日寮\n規模：RC造　5階建\n建築面積：306㎡　延床面積　1,305.8㎡\n防水改修一式　外壁改修一式　建具改修一式\n内装改修一式　塗装改修一式　雑改修一式\n電気設備改修　一式","第2四半期","第2四半期",null,null,null,"建築室"]
[25,"東京航空局","一般競争","新千歳空港Ａ・Ｂ連絡橋改修工事","北海道","北海道千歳市\n新千歳空港","2020-08-01","2020-12-01",5,"","建築工事","Ａ連絡橋\n規模：S造　2階建て\n延べ面積：808.12㎡\n改修工事一式\n\nB連絡橋\n規模：S造　2階建て\n延べ面積：807.95㎡\n改修工事一式","第2四半期","第2四半期",null,null,null,"建築室"]
[26,"東京航空局","一般競争","東京国際空港ＳＲＡ検査場新築工事","東京都","東京都大田区\n東京国際空港","2020-09-01","2021-03-01",7,"","建築工事","Ｔ２ゲート\n規模：S造　平屋建て\n延べ面積：504.96㎡\n新築、外構、電気設備、機械設備　一式\n\nC-1ゲート\n規模：S造　平屋建て\n延べ面積：550㎡\n新築、外構、電気設備、機械設備　一式\n\n旧整備場ゲート\n規模：S造　平屋建て\n延べ面積453.28㎡\n新築、外構、電気設備、機械設備　一式","第2四半期","第2四半期",null,null,null,"建築室"]
[{"$f":"1+A41","v":27},"東京航空局","一般競争","東京国際空港雨水排水ポンプ場機械設備工事（その１）","東京都","東京都大田区\n東京国際空港","2020-10-01","2021-03-01",6,"","管工事又は機械器具設置工事","雨水排水ポンプの更新工事\n雨水排水ポンプ１式","第3四半期","第2四半期",null,null,null,"機械課"]
[28,"東京航空局","一般競争","東京国際空港雨水排水ポンプ場監視設備工事","東京都","東京都大田区\n東京国際空港","2020-10-01","2021-03-01",6,"","電気工事又は電気通信工事","雨水排水ポンプ用監視設備の更新工事\n雨水排水ポンプ用監視設備１式","第3四半期","第2四半期",null,null,null,"機械課"]
[29,"東京航空局","一般競争","東京国際空港立体駐車場発電設備工事","東京都","東京都大田区\n東京国際空港","2020-08-01","2021-03-01",8,"","機械器具設置工事又は電気工事","非常用発電機の更新工事\n非常用発電機　2台","第2四半期","第2四半期",null,null,null,"機械課"]
[30,"東京航空局","一般競争","東京国際空港旧管制塔VFR室外空気調和設備工事","東京都","東京都大田区\n東京国際空港","2020-08-01","2021-03-01",8,"","管工事","旧管制塔用空気調和設備の更新工事\n空冷式パッケージ形空気調和機　8台\n空気調和装置動力制御盤　4面　","第2四半期","第2四半期",null,null,null,"機械課"]
[31,"東京航空局","一般競争","東京国際空港西側電源局舎空気調和設備工事","東京都","東京都大田区\n東京国際空港","2020-10-01","2021-02-01",5,"","管工事","電源局舎の空気調和設備の更新工事\n空冷式パッケージ形空気調和機　4台\n空気調和装置動力制御盤　2面　","第3四半期","第2四半期",null,null,null,"機械課"]
[32,"東京航空局","一般競争","東京国際空港Ｔ１０４上水ポンプ場圧力タンク設置工事","東京都","東京都大田区\n東京国際空港","2020-09-01","2021-02-01",6,"","管工事","圧力タンクの設置工事\n圧力タンク１式","第2四半期","第2四半期",null,null,null,"機械課"]
[33,"東京航空局","一般競争","東京国際空港水質自動計測機器設置工事","東京都","東京都大田区\n東京国際空港","2020-10-01","2021-03-01",6,"","電気通信工事","水質自動計測機器の設置工事\n水質自動計測機器１式","第3四半期","第2四半期",null,null,null,"機械課"]
[{"$f":"A48+1","v":34},"東京航空局","一般競争","新千歳空港ＦＳＣ機器室空気調和設備工事","北海道","北海道千歳市\n新千歳空港","2020-11-01","2021-03-01",5,"","管工事","空気調和設備の更新工事\n空冷式パッケージ形空気調和機　２台\n空気調和装置動力制御盤　1面　","第3四半期","第3四半期",null,null,null,"機械課"]
[35,"東京航空局","一般競争","帯広空港庁舎機械設備工事","北海道","北海道帯広市\n帯広空港","2020-09-01","2021-02-01",6,"","管工事","空気調和設備の更新工事\n機械設備　１式","第2四半期","第2四半期",null,null,null,"機械課"]
[36,"東京航空局","一般競争","函館空港電源局舎空気調和設備工事","北海道","北海道函館市\n函館空港","2020-09-01","2021-03-01",7,"","管工事","空気調和設備の更新工事\n空気調和設備１式","第2四半期","第2四半期",null,null,null,"機械課"]
[37,"東京航空局","一般競争","函館空港除雪車庫空気調和設備工事","北海道","北海道函館市\n函館空港","2020-09-01","2021-03-01",7,"","管工事","空気調和設備の更新工事\n温風暖房機　１台　他","第2四半期","第2四半期",null,null,null,"機械課"]
[38,"東京航空局","一般競争","函館空港ＡＳＲ／ＴＸ局舎空気調和設備工事","北海道","北海道函館市\n函館ASR/TX","2020-09-01","2021-03-01",7,"","管工事","空気調和設備の更新工事\n空冷式パッケージ形空気調和機　２台\n空気調和装置動力制御盤　1面　","第2四半期","第2四半期",null,null,null,"機械課"]
[39,"東京航空局","一般競争","函館空港ＶＦＲ室外２カ所空気調和設備工事","北海道","北海道函館市\n函館空港","2020-09-01","2021-03-01",7,"","管工事","空気調和設備の更新工事\n空冷式パッケージ形空気調和機　６台\n空気調和装置動力制御盤　３面　","第2四半期","第2四半期",null,null,null,"機械課"]
[40,"東京航空局","一般競争","中標津空港無線機器室空気調和設備工事","北海道","北海道標津郡中標津町\n中標津空港","2020-09-01","2021-01-01",5,"","管工事","空気調和設備の更新工事\n空冷式パッケージ形空気調和機　２台\n空気調和装置動力制御盤　1面　","第2四半期","第2四半期",null,null,null,"機械課"]
[41,"東京航空局","一般競争","釧路空港ＶＯＲ／ＤＭＥ局舎空気調和設備","北海道","北海道釧路市\n釧路VOR/DME","2020-09-01","2021-01-01",5,"","管工事","空気調和設備の更新工事\n空冷式パッケージ形空気調和機　２台\n空気調和装置動力制御盤　1面　","第2四半期","第2四半期",null,null,null,"機械課"]
[42,"東京航空局","一般競争","釧路空港電源局舎トイレ改修工事","北海道","北海道釧路市\n釧路空港","2020-11-01","2021-03-01",5,"","管工事","トイレの改修工事\nトイレ　１式","第3四半期","第3四半期",null,null,null,"機械課"]
[43,"東京航空局","一般競争","青森空港庁舎無線機器室２用空気調和設備工事","青森県","青森県青森市\n青森空港","2020-08-01","2020-11-01",4,"","管工事","空気調和設備の更新工事\n空冷式パッケージ形空気調和機　２台\n空気調和装置動力制御盤　1面　","第2四半期","第2四半期",null,null,null,"機械課"]
[44,"東京航空局","一般競争","青森空港ＳＳＲ局舎空気調和設備工事","青森県","青森県青森市\n青森空港","2020-12-01","2021-03-01",4,"","管工事","空気調和設備の更新工事\n空冷式パッケージ形空気調和機　２台\n空気調和装置動力制御盤　1面　","第3四半期","第3四半期",null,null,null,"機械課"]
[45,"東京航空局","一般競争","山形空港無線機器室外空気調和設備工事","山形県","山形県東根市\n山形空港","2020-09-01","2021-01-01",5,"","管工事","空気調和設備の更新工事\n空冷式パッケージ形空気調和機　４台\n空気調和装置動力制御盤　２面　","第2四半期","第2四半期",null,null,null,"機械課"]
[46,"東京航空局","一般競争","福島空港ＶＯＲ／ＤＭＥ局舎空気調和設備工事","福島県","福島県石川郡玉川村\n福島VOR/DME","2020-12-01","2021-03-01",4,"","管工事","空気調和設備の更新工事\n空冷式パッケージ形空気調和機　２台\n空気調和装置動力制御盤　1面　","第3四半期","第3四半期",null,null,null,"機械課"]
[47,"東京航空局","一般競争","上品山ＡＲＳＲ局舎外２か所空気調和設備工事","宮城県","宮城県石巻市\n上品山SSR","2020-10-01","2021-03-01",6,"","管工事","空気調和設備の更新工事\n空冷式パッケージ形空気調和機　８台\n空気調和装置動力制御盤　４面　他","第3四半期","第2四半期",null,null,null,"機械課"]
[48,"東京航空局","一般競争","大子ＶＯＲＴＡＣ局舎ＲＣＡＧ機器室空気調和設備工事","茨城県","茨城県久慈郡大子町\n大子VORTAC","2020-11-01","2021-02-01",4,"","管工事","空気調和設備の更新工事\n空冷式パッケージ形空気調和機　２台\n空気調和装置動力制御盤　1面　","第2四半期","第2四半期",null,null,null,"機械課"]
[49,"東京航空局","一般競争","性能評価センター機械設備工事","茨城県","茨城県常陸太田市\n性能評価センター","2020-12-01","2022-03-01",16,"","管工事","機械設備の更新工事\n冷凍機　４台\nユニット型空調機　１６台　他","第3四半期","第2四半期",null,null,null,"機械課"]
[{"$f":"A64+1","v":50},"東京航空局","一般競争","東京国際空港運航情報業務用機器移設工事","東京都","東京都大田区\n　東京国際空港","2020-12-01","2021-03-20",{"$f":"IF(S65>0,S65,DATEDIF(G65,H65,\"M\")+1)","v":4},"","電気通信工事","運航情報業務用機器移設工事　1式\n付帯設備設置工事　1式","第3四半期","第3四半期",null,null,null,"運用課"]
[51,"東京航空局","一般競争","東京国際空港ＡＴＩＳ端末更新工事","東京都","東京都大田区\n　東京国際空港","2020-12-01","2021-03-20",{"$f":"IF(S66>0,S66,DATEDIF(G66,H66,\"M\")+1)","v":4},"","電気通信工事","ATIS端末設置工事　1式\nATIS端末撤去工事　1式\n付帯設備設置工事　1式","第3四半期","第3四半期",null,null,null,"運用課"]
[52,"東京航空局","一般競争","稚内空港他２空港運航援助業務機器移設その他工事","北海道","北海道稚内市\n　稚内空港\n北海道釧路市\n　釧路空港\n北海道函館市\n　函館空港","2020-12-01","2021-03-20",{"$f":"IF(S67>0,S67,DATEDIF(G67,H67,\"M\")+1)","v":4},"","電気通信工事","運航情報業務用機器移設工事　1式\n運航情報業務用機器撤去工事　1式\n付帯設備設置工事　1式","第3四半期","第3四半期",null,null,null,"運用課"]
[53,"東京航空局","一般競争","新潟空港滑走路面監視装置更新工事","新潟県","新潟県新潟市\n　新潟空港","2020-08-01","2020-12-01",{"$f":"IF(S68>0,S68,DATEDIF(G68,H68,\"M\")+1)","v":5},"","電気通信工事","滑走路面監視装置更新工事　1式","第2四半期","第2四半期",null,null,null,"運用課"]
[54,"東京航空局","一般競争","秋田空港他４空港運航援助支援業務機器撤去その他工事","秋田県\n青森県\n北海道","秋田県\n　秋田空港\n青森県\n　青森空港\n北海道旭川市\n　旭川空港\n北海道帯広市\n　帯広空港\n北海道網走郡大空町\n　女満別空港","2020-08-01","2020-12-01",5,"","電気通信工事","運航情報業務用機器撤去工事　1式\n付帯設備設置工事　1式","第2四半期","第2四半期",null,null,null,"運用課"]
[55,"東京航空局","一般競争","新島空港外１空港ＲＡＧ空港用ＩＴＶ装置更新工事","東京都","東京都大田区\n　東京国際空港\n東京都新島村\n　新島空港\n東京都神津島村\n　神津島空港","2020-09-01","2021-01-01",5,"","電気通信工事","RAG-ITV機器設置工事　1式\n付帯設備設置工事　1式","第2四半期","第2四半期",null,null,null,"管技課"]
[56,"東京航空局","一般競争","東京国際空港第１ＡＳＤＥ更新工事","東京都","東京都大田区\n東京国際空港","2020-07-01","2021-03-01",9,"","電気通信工事","ASDE更新工事1式","第2四半期","第1四半期",null,null,null,"管技課"]
[{"$f":"A71+1","v":57},"東京航空局","一般競争","東京国際空港旧管制塔設備更新工事","東京都","東京都大田区\n東京国際空港","2020-08-01","2021-03-01",8,"","電気通信工事","管制塔設備更新工事1式\n付帯設備設置工事1式","第2四半期","第2四半期",null,null,null,"管技課"]
[58,"東京航空局","一般競争","青森空港管制塔設備移設その他工事","青森県","青森県青森市\n青森空港","2020-10-01","2021-03-01",6,"","電気通信工事","管制塔設備移設工事1式\n付帯設備設置工事1式","第3四半期","第2四半期",null,null,null,"管技課"]
[59,"東京航空局","一般競争","釧路空港ＩＬＳ更新その他工事","北海道","北海道釧路市\n釧路空港","2020-12-01","2022-03-01",16,"","電気通信工事","ILS更新工事1式\n仮設LOC撤去工事1式","第4四半期","第3四半期",null,null,null,"管技課"]
[60,"東京航空局","一般競争","函館空港ＴＳＲ更新工事","北海道","北海道函館市\n函館空港","2020-08-01","2021-03-01",8,"","電気通信工事","TSR更新工事1式","第2四半期","第2四半期",null,null,null,"管技課"]
[{"$f":"A75+1","v":61},"東京航空局","一般競争","成田国際空港第１ＴＳＲ更新工事","千葉県","千葉県成田市\n成田国際空港","2020-08-01","2021-03-01",8,"","電気通信工事","TSR更新工事1式","第2四半期","第2四半期",null,null,null,"管技課"]
[{"$f":"A76+1","v":62},"東京航空局","一般競争","坂戸国際対空通信設備更新工事","埼玉県","埼玉県鶴ヶ島市\n坂戸HF","2020-08-01","2021-03-01",8,"","電気通信工事","国際対空更新工事1式\n付帯設備設置工事1式","第2四半期","第2四半期",null,null,null,"管技課"]
[63,"東京航空局","一般競争","上品山ＳＳＲ更新工事","宮城県","宮城県石巻市\n上品山SSR","2020-08-01","2021-03-01",8,"","電気通信工事","SSR更新工事1式\n付帯設備設置工事1式","第2四半期","第2四半期",null,null,null,"管技課"]
[64,"東京航空局","一般競争","成田国際対空通信設備更新工事","千葉県","千葉県成田市\n成田国際空港","2020-08-01","2021-03-01",8,"","電気通信工事","国際対空通信設備更新工事1式\n付帯設備設置工事1式","第2四半期","第2四半期",null,null,null,"管技課"]
[65,"東京航空局","一般競争","新潟空港ＴＳＲ空中線鉄塔補修工事","新潟県","新潟県新潟市\n新潟空港","2020-09-01","2021-03-01",7,"","鋼構造物工事","TSR空中線鉄塔補修工事1式","第2四半期","第2四半期",null,null,null,"管技課"]
[66,"東京航空局","一般競争","新潟空港統合管制情報処理システム設置その他工事","新潟県","新潟県新潟市\n新潟空港","2020-08-01","2021-02-01",7,"","電気通信工事","統合管制情報処理システム設備設置工事1式\n付帯設備設置工事1式","第2四半期","第2四半期",null,null,null,"管技課"]
[67,"東京航空局","一般競争","仙台空港統合管制情報処理システム移設その他工事","宮城県","宮城県名取市\n仙台空港","2020-09-01","2021-03-01",7,"","電気通信工事","統合管制情報処理システム設備設置工事1式\n付帯設備設置工事1式","第2四半期","第2四半期",null,null,null,"管技課"]
[68,"東京航空局","一般競争","秋田空港仮設ＬＯＣ設置工事","秋田県","秋田県秋田市\n秋田空港","2021-02-01","2021-05-01",4,"","電気通信工事","仮設LOC設置工事1式","第4四半期","第4四半期",null,null,null,"管技課"]
[69,"東京航空局","一般競争","秋田仮設ＳＳＲ設置工事","秋田県","秋田県秋田市\n秋田SSR/TX","2020-08-01","2021-01-01",6,"","電気通信工事","仮設SSR設置工事1式","第2四半期","第2四半期",null,null,null,"管技課"]
[70,"東京航空局","一般競争","利尻仮設ＶＯＲ／ＤＭＥ撤去工事","北海道","北海道利尻郡利尻富士町\n利尻VOR/DME","2020-08-01","2020-12-25",5,"","電気通信工事","仮設VOR/DME撤去工事1式","第2四半期","第2四半期",null,null,null,"管技課"]
[71,"東京航空局","一般競争","利尻空港外２空港ＲＡＧ空港用ＩＴＶ装置更新工事","北海道","北海道千歳市\n　新千歳空港\n北海道利尻郡利尻富士町\n　利尻空港\n北海道奥尻郡奥尻町\n　奥尻空港\n北海道紋別市\n  紋別空港","2020-08-01","2020-12-01",5,"","電気通信工事","RAG-ITV機器設置工事　1式\n付帯設備設置工事　1式","第2四半期","第1四半期",null,null,null,"管技課"]
[72,"東京航空局","一般競争","成田ＲＣＡＧ更新工事","千葉県","千葉県成田市\n成田国際空港","2020-09-01","2020-12-01",{"$f":"IF(S87>0,S87,DATEDIF(G87,H87,\"M\")+1)","v":3},{"$f":"IF(S87>0,\"※\",\"\")","v":"※"},"電気通信工事","RCAG更新工事1式\n付帯設備設置工事1式","第2四半期","第2四半期",null,null,null,"管技課",3]
[73,"東京航空局","一般競争","守谷ＤＭＥ更新工事","茨城県","茨城県守谷市\n守谷VOR/DME","2020-09-01","2020-12-01",4,"","電気通信工事","DME更新工事1式\n付帯設備設置工事1式","第2四半期","第2四半期",null,null,null,"管技課"]
[74,"東京航空局","一般競争","千歳ＶＯＲ／ＤＭＥ更新工事","北海道","北海道苫小牧市\n千歳VOR/DME","2020-09-01","2021-03-01",6,"※","電気通信工事","VOR/DME更新工事 1式、付帯設備更新工事　1式\n仮設VOR/DME撤去工事1式","第2四半期","第2四半期",null,null,null,"管技課",6]
[{"$f":"A89+1","v":75},"東京航空局","一般競争","東京国際空港非常用管制塔装置更新その他工事","東京都","東京都大田区\n東京国際空港","2020-11-01","2021-03-01",5,"","電気通信工事","非常用管制塔付帯設備更新工事1式","第3四半期","第3四半期",null,null,null,"管技課"]
[76,"東京航空局","一般競争","東京国際空港ＳＩＭ移設その他工事","東京都","東京都大田区\n東京国際空港","2020-10-01","2021-03-01",6,"","電気通信工事","SIM移設工事1式\n付帯設備設置工事1式","第3四半期","第2四半期",null,null,null,"管技課"]
[77,"東京航空局","一般競争","函館空港ＡＴＩＳ業務集約整備工事","東京都\n北海道","東京都大田区\n　東京国際空港\n北海道函館市\n　函館空港","2020-10-01","2021-03-01",6,"","電気通信工事","ATIS業務集約整備工事1式","第3四半期","第2四半期",null,null,null,"管技課"]
[78,"東京航空局","一般競争","帯広空港仮設ＬＯＣ設置工事","北海道","北海道帯広市\n帯広空港","2021-02-01","2021-05-01",4,"","電気通信工事","仮設LOC設置工事1式","第4四半期","第4四半期",null,null,null,"管技課"]
[79,"東京航空局","一般競争","女満別空港仮設ＬＯＣ設置工事","北海道","北海道網走郡大空町\n女満別空港","2021-02-01","2021-05-01",4,"","電気通信工事","仮設LOC設置工事1式","第4四半期","第4四半期",null,null,null,"管技課"]
[80,"東京航空局","一般競争","旭川空港仮設ＳＳＲ設置工事","北海道","北海道上川郡東神楽町\n旭川SSR","2021-03-01","2021-07-01",5,"","電気通信工事","仮設SSR設置工事1式","第4四半期","第4四半期",null,null,null,"管技課"]
[81,"東京航空局","一般競争","東京国際空港第２ＴＳＲ更新工事","東京都","東京都大田区\n東京国際空港","2021-04-01","2022-03-01",12,"","電気通信工事","TSR更新工事1式\n付帯設備更新工事1式","第4四半期","第4四半期",null,null,null,"管技課"]
[82,"東京航空局","一般競争","函館空港ＴＡＰＳ－ＳＩＭ更新その他工事","北海道","北海道函館市\n函館空港","2020-11-01","2021-03-01",5,"","電気通信工事","TAPS-SIM設置工事1式","第3四半期","第3四半期",null,null,null,"管技課"]
[{"$f":"A97+1","v":83},"東京航空局","一般競争","東京国際空港構内道路（ランプ橋部）道路照明灯設置工事","東京都","東京都大田区\n東京国際空港","2020-09-01","2021-03-01",7,"","電気工事","街路灯　１式\nケーブル　１式","第2四半期","第2四半期",null,null,null,"灯電課"]
[84,"東京航空局","一般競争","東京国際空港Ｂ滑走路論理制御装置設置工事","東京都","東京都大田区\n東京国際空港","2020-08-01","2021-03-01",8,"","電気工事","監視装置　１式\nケーブル　１式","第2四半期","第2四半期",null,null,null,"灯電課"]
[{"$f":"A99+1","v":85},"東京航空局","一般競争","新千歳空港地下道照明灯改良その他工事","北海道","北海道千歳市\n新千歳空港","2020-09-01","2021-01-01",5,"","電気工事","道路照明灯　１式\nケーブル　１式","第2四半期","第2四半期",null,null,null,"灯電課"]
[{"$f":"A100+1","v":86},"東京航空局","一般競争","三沢空港航空灯火施設維持工事","青森県","青森県三沢市\n三沢空港","2020-12-01","2024-03-01",40,"","電気工事","航空灯火施設　一式\n電気施設　一式","第3四半期","第3四半期",null,null,null,"灯電課"]
[87,"東京航空局","一般競争","新潟空港航空灯火施設維持工事","新潟県","新潟県新潟市\n新潟空港","2020-12-01","2024-03-01",40,"","電気工事","航空灯火施設　一式\n電気施設　一式","第3四半期","第3四半期",null,null,null,"灯電課"]
[88,"東京航空局","一般競争","稚内空港道路駐車場灯改良その他工事","北海道","北海道稚内市\n稚内空港","2020-09-01","2021-01-01",5,"","電気工事","道路照明灯　一式\nケーブル　一式","第2四半期","第2四半期",null,null,null,"灯電課"]
[89,"東京航空局","一般競争","釧路空港滑走路中心線灯改良その他工事","北海道","北海道釧路市\n釧路空港","2020-08-01","2021-01-01",6,"","電気工事","滑走路灯火　一式\n誘導路灯火　一式\nケーブル　一式","第2四半期","第1四半期",null,null,null,"灯電課"]
[90,"東京航空局","一般競争","東京航空交通管制部瞬時電圧低下補償装置設置その他工事","埼玉県","埼玉県所沢市\n東京航空交通管制部","2020-09-01","2021-01-01",5,"","電気工事","瞬時電圧低下補償装置　一式\nケーブル　一式","第2四半期","第2四半期",null,null,null,"灯電課"]
[91,"東京航空局","一般競争","東京航空局サーバー室改修工事","東京都","東京都千代田区\n九段第二合同庁舎","2020-10-01","2020-12-01",3,"","電気通信工事","・電子錠、監視カメラ、ガス系消火設備　新設\n・機器収容ラック８架　移設\n・その他付帯工事、電源、通信、光ケーブル敷設等","第2四半期","第2四半期",null,null,null,"灯電課"]
[92,"東京航空局","一般競争","新千歳空港停止線灯監視制御装置改良その他工事","北海道","北海道千歳市\n新千歳空港","2020-09-01","2021-03-01",7,{"$f":"IF(S107>0,\"※\",\"\")","v":""},"電気工事","停止線灯監視制御装置　１式\n進入角指示灯監視制御装置　1式\nケーブル　１式","第2四半期","第2四半期",null,null,null,"灯電課"]
[93,"東京航空局","一般競争","東京国際空港Ｃ滑走路進入角指示灯設置その他工事","東京都","東京都大田区","2020-08-01","2021-04-01",9,{"$f":"IF(S108>0,\"※\",\"\")","v":""},"電気工事","進入角指示灯　１式\n進入角指示灯監視制御装置　1式\nケーブル　１式","第2四半期","第2四半期",null,null,null,"灯電課"]
[94,"東京航空局","一般競争","東京国際空港Ａ滑走路中心線灯改良その他工事　その２","東京都","東京都大田区","2020-09-01","2021-03-01",7,"","電気工事","滑走路灯火　１式\n誘導路灯火　1式\nケーブル　１式","第2四半期","第2四半期",null,null,null,"灯電課"]
[95,"東京航空局","一般競争","百里空港航空灯火施設維持工事","茨城県","茨城県小美玉市\n百里空港","2020-12-01","2024-03-01",40,"","電気工事","航空灯火施設　一式\n電気施設　一式","第3四半期","第3四半期",null,null,null,"灯電課"]
[96,"東京航空局","一般競争","東京国際空港場周警備設備（新貴賓室）設置工事他１件工事","東京都","東京都大田区\n東京国際空港","2020-10-01","2021-03-01",6,"","電気通信工事","・場周警備設備（新貴賓室）　一式\n・場周警備設備（ｴﾝｼﾞﾝﾃｽﾄｾﾙ地区）　一式\n・配管及び電源、通信、光ケーブル等","第2四半期","第2四半期",null,null,null,"安対課"]
[97,"東京航空局","一般競争","函館空港保安防災関連ケーブル切換工事他１件工事","北海道","北海道函館市\n函館空港","2020-08-01","2021-02-01",7,"","電気通信工事","・配管及び電源、通信、光ケーブル等","第2四半期","第2四半期",null,null,null,"安対課"]
[98,"東京航空局","一般競争","東京国際空港防災通信指令装置更新工事","東京都","東京都大田区\n東京国際空港","2020-12-01","2021-03-01",4,"","電気通信工事","・防災通信指令装置　一式\n・配管及び電源、通信、光ケーブル等","第3四半期","第3四半期",null,null,null,"安対課"]
[99,"東京航空局","一般競争","東京国際空港海上警備設備更新工事","東京都","東京都大田区\n東京国際空港","2020-08-01","2021-03-01",8,"","電気通信工事","・海上警備設備一式\n・配管及び電源、通信、光ケーブル等","第2四半期","第2四半期",null,null,null,"安対課"]
[100,"東京航空局","一般競争","新潟空港保安防災総合運用装置設置工事","新潟県","新潟県新潟市\n新潟空港","2020-12-01","2021-03-01",4,"","電気通信工事","・保安防災総合運用装置　一式\n・配管及び電源、通信、光ケーブル等","第3四半期","第3四半期",null,null,null,"安対課"]
[101,"東京航空局","一般競争","東京国際空港新貴賓室電話回線敷設工事","東京都","東京都大田区\n東京国際空港","2020-07-01","2020-09-01",3,"","電気通信工事","電話回線敷設工事","第2四半期","第1四半期",null,null,null,"総務課"]
[102,"新千歳空港事務所","一般競争","釧路ＲＣＡＧ更新工事","北海道","北海道川上郡標茶町\n釧路RCAG","2020-08-01","2020-12-01",5,"","電気通信工事","RCAG更新工事　1式\n付帯設備設置工事　1式","第2四半期","第2四半期",null,null,null,"新千歳（事）"]
[103,"新千歳空港事務所","一般競争","中標津空港ＲＡＧ更新工事","北海道","北海道標津郡中標津町\n中標津空港","2020-08-01","2020-12-01",4,"※","電気通信工事","RAG更新工事　1式\n付帯設備設置工事　1式","第2四半期","第2四半期",null,null,null,"新千歳（事）",4]
[104,"新千歳空港事務所","一般競争","新千歳空港ケーブル切り回しその他工事(仮称)","北海道","北海道千歳市\n新千歳空港","2020-09-01","2021-03-01",7,"","電気通信工事","ケーブル　1式","第2四半期","第2四半期",null,null,null,"新千歳（事）"]
[105,"旭川空港出張所","一般競争","旭川空港ＤＲＥＣ更新工事","北海道","北海道上川郡東神楽町\n旭川空港出張所","2020-08-01","2021-01-01",{"$f":"IF(S120>0,S120,DATEDIF(G120,H120,\"M\")+1)","v":6},null,"電気通信工事","DREC機器設置工事　1式\n付帯設備設置工事　1式\n機器撤去工事　1式","第2四半期","第2四半期",null,null,null,"新千歳（事）"]
[{"$f":"A120+1","v":106},"新潟空港事務所","一般競争","新潟空港対空通信設備更新工事","新潟県","新潟県新潟市\n新潟空港","2020-09-01","2021-03-01",7,"","電気通信工事","ＡＧ機器設置工事　1式","第2四半期","第2四半期",null,null,null,"新潟（事）"]
[107,"新潟空港事務所","一般競争","新潟空港ＴＡＰＳ－ＳＩＭ設置工事","新潟県","新潟県新潟市\n新潟空港","2020-10-01","2021-03-01",6,"","電気通信工事","TAPS-SIM設置","第2四半期","第2四半期",null,null,null,"新潟（事）"]
[108,"仙台空港事務所","一般競争","仙台ＲＣＡＧ更新その他工事","宮城県","宮城県名取市\n仙台空港","2020-09-01","2021-03-01",7,"","電気通信工事","RCAG更新工事1式\n付帯設備設置工事1式\nA/G更新工事1式\nTAPS-SIM設置工事1式\n機器撤去工事1式","第2四半期","第2四半期",null,null,null,"仙台（事）"]
[109,"仙台空港事務所","一般競争","福島空港出張所庁舎屋上房水改修工事","福島県","福島県石川郡玉川村\n福島空港","2020-10-01","2021-02-01",5,"","建築工事","経年劣化に伴う押さえコンクリート表面剥離改修","第3四半期","第3四半期",null,null,null,"仙台（事）"]
[110,"東京空港事務所","一般競争","糀谷宿舎外壁改修工事","東京都","東京都大田区","2020-08-01","2021-03-01",8,"","建築工事","経年劣化よる外壁改修","第2四半期","第2四半期",null,null,null,"東京（事）"]
[111,"東京空港事務所","一般競争","雄山ケーブルダクト改修その他工事","東京都","東京都三宅島","2020-10-01","2020-12-01",{"$f":"IF(S126>0,S126,DATEDIF(G126,H126,\"M\")+1)","v":3},{"$f":"IF(S126>0,\"※\",\"\")","v":""},"電気通信工事","経年劣化による屋外ケーブルダクトの改修","第3四半期","第2四半期",null,null,null,"東京（事）"]
[112,"東京空港事務所","一般競争","新島ＲＡＧ用空中線柱交換その他工事","東京都","東京都新島","2020-10-01","2021-03-01",6,"","電気通信工事","損傷による空中線柱更新　2式\nITVカメラ設置　　　　 　1式","第3四半期","第2四半期",null,null,null,"東京（事）"]
[113,"東京空港事務所","一般競争","友部ＩＴＶ更新その他工事","東京都","茨城県笠間市","2020-10-01","2021-03-01",6,"","電気通信工事","ITVカメラ設置工事　1式\n付帯設備設置工事　1式","第3四半期","第2四半期",null,null,null,"東京（事）"]
[114,"東京空港事務所","一般競争","大子ＲＣＡＧ更新工事","茨城県","茨城県久慈郡大子町\n大子VORTAC","2020-08-01","2020-12-01",5,"","電気通信工事","RCAG更新工事1式\n付帯設備設置工事1式","第2四半期","第2四半期",null,null,null,"東京（事）"]
[115,"東京空港事務所","一般競争","東京国際空港３４Ｒ－ＩＭシェルタ移設工事","東京都","東京都大田区\n東京国際空港","2020-11-01","2020-03-01",5,null,"電気通信工事","IM移設工事1式\n付帯設備設置・移設工事1式","第3四半期","第3四半期",null,null,null,"東京（事）"]
[116,null,null,null,null,null,null,null,{"$f":"IF(S131>0,S131,DATEDIF(G131,H131,\"M\")+1)","v":1},{"$f":"IF(S131>0,\"※\",\"\")","v":""},null,null,null,null,null,1]
[117,null,null,null,null,null,null,null,1,"",null,null,null,null,null,1]
[118,null,null,null,null,null,null,null,1,"",null,null,null,null,null,1]
[119,null,null,null,null,null,null,null,1,"",null,null,null,null,null,1]
[120,null,null,null,null,null,null,null,1,"",null,null,null,null,null,1]
[121,null,null,null,null,null,null,null,1,"",null,null,null,null,null,1]
[122,null,null,null,null,null,null,null,1,"",null,null,null,null,null,1]
[123,null,null,null,null,null,null,null,1,"",null,null,null,null,null,1]
[124,null,null,null,null,null,null,null,1,"",null,null,null,null,null,1]
[125,null,null,null,null,null,null,null,1,"",null,null,null,null,null,1]
[{"$f":"A140+1","v":126},null,null,null,null,null,null,null,1,"",null,null,null,null,null,1]
[127,null,null,null,null,null,null,null,1,"",null,null,null,null,null,1]
[128,null,null,null,null,null,null,null,1,"",null,null,null,null,null,1]
[129,null,null,null,null,null,null,null,1,"",null,null,null,null,null,1]
[130,null,null,null,null,null,null,null,1,"",null,null,null,null,null,1]
[131,null,null,null,null,null,null,null,1,"",null,null,null,null,null,1]
[132,null,null,null,null,null,null,null,1,"",null,null,null,null,null,1]
[133,null,null,null,null,null,null,null,1,"",null,null,null,null,null,1]
[134,null,null,null,null,null,null,null,1,"",null,null,null,null,null,1]
[135,null,null,null,null,null,null,null,1,"",null,null,null,null,null,1]
[136,null,null,null,null,null,null,null,1,"",null,null,null,null,null,1]
[137,null,null,null,null,null,null,null,1,"",null,null,null,null,null,1]
[138,null,null,null,null,null,null,null,1,"",null,null,null,null,null,1]
[139,null,null,null,null,null,null,null,1,"",null,null,null,null,null,1]
[140,null,null,null,null,null,null,null,1,"",null,null,null,null,null,1]
[141,null,null,null,null,null,null,null,1,"",null,null,null,null,null,1]
[142,null,null,null,null,null,null,null,1,"",null,null,null,null,null,1]
[143,null,null,null,null,null,null,null,1,"",null,null,null,null,null,1]
[144,null,null,null,null,null,null,null,1,"",null,null,null,null,null,1]
[145,null,null,null,null,null,null,null,1,"",null,null,null,null,null,1]
[146,null,null,null,null,null,null,null,1,"",null,null,null,null,null,1]
[147,null,null,null,null,null,null,null,1,"",null,null,null,null,null,1]
[148,null,null,null,null,null,null,null,1,"",null,null,null,null,null,1]
[149,null,null,null,null,null,null,null,1,"",null,null,null,null,null,1]
[150,null,null,null,null,null,null,null,1,"",null,null,null,null,null,1]
[151,null,null,null,null,null,null,null,1,"",null,null,null,null,null,1]
[152,null,null,null,null,null,null,null,1,"",null,null,null,null,null,1]
[153,null,null,null,null,null,null,null,1,"",null,null,null,null,null,1]
[154,null,null,null,null,null,null,null,1,"",null,null,null,null,null,1]
[155,null,null,null,null,null,null,null,1,"",null,null,null,null,null,1]
[156,null,null,null,null,null,null,null,1,"",null,null,null,null,null,1]
[157,null,null,null,null,null,null,null,1,"",null,null,null,null,null,1]
[158,null,null,null,null,null,null,null,1,"",null,null,null,null,null,1]
[159,null,null,null,null,null,null,null,1,"",null,null,null,null,null,1]
[160,null,null,null,null,null,null,null,1,"",null,null,null,null,null,1]
[161,null,null,null,null,null,null,null,1,"",null,null,null,null,null,1]
[162,null,null,null,null,null,null,null,1,"",null,null,null,null,null,1]
[163,null,null,null,null,null,null,null,1,"",null,null,null,null,null,1]
[164,null,null,null,null,null,null,null,1,"",null,null,null,null,null,1]
[165,null,null,null,null,null,null,null,1,"",null,null,null,null,null,1]
[166,null,null,null,null,null,null,null,1,"",null,null,null,null,null,1]
[167,null,null,null,null,null,null,null,1,"",null,null,null,null,null,1]
[168,null,null,null,null,null,null,null,1,"",null,null,null,null,null,1]
[169,null,null,null,null,null,null,null,1,"",null,null,null,null,null,1]
[170,null,null,null,null,null,null,null,1,"",null,null,null,null,null,1]
[171,null,null,null,null,null,null,null,1,"",null,null,null,null,null,1]
[172,null,null,null,null,null,null,null,1,"",null,null,null,null,null,1]
[{"$f":"A187+1","v":173},null,null,null,null,null,null,null,{"$f":"IF(S188>0,S188,DATEDIF(G188,H188,\"M\")+1)","v":1},{"$f":"IF(S188>0,\"※\",\"\")","v":""},null,null,null,null,null,1]
[174,null,null,null,null,null,null,null,1,"",null,null,null,null,null,1]
[175,null,null,null,null,null,null,null,1,"",null,null,null,null,null,1]
[176,null,null,null,null,null,null,null,1,"",null,null,null,null,null,1]
[177,null,null,null,null,null,null,null,1,"",null,null,null,null,null,1]
[178,null,null,null,null,null,null,null,1,"",null,null,null,null,null,1]
[179,null,null,null,null,null,null,null,1,"",null,null,null,null,null,1]
[180,null,null,null,null,null,null,null,1,"",null,null,null,null,null,1]
[181,null,null,null,null,null,null,null,1,"",null,null,null,null,null,1]
[182,null,null,null,null,null,null,null,1,"",null,null,null,null,null,1]
[183,null,null,null,null,null,null,null,1,"",null,null,null,null,null,1]
[184,null,null,null,null,null,null,null,{"$f":"IF(S199>0,S199,DATEDIF(G199,H199,\"M\")+1)","v":1},{"$f":"IF(S199>0,\"※\",\"\")","v":""},null,null,null,null,null,1]
[185,null,null,null,null,null,null,null,1,"",null,null,null,null,null,1]
[186,null,null,null,null,null,null,null,1,"",null,null,null,null,null,1]

{"sheet":"地域、区分から検索","index":1,"n_rows":29,"n_cols":118,"rows_kept":29,"cut":false,"hidden":false,"merged":[[4,89,4,95],[4,83,4,88],[2,103,3,120],[2,83,3,99],[28,83,28,88],[28,89,28,95],[28,96,28,99],[26,89,26,95],[26,96,26,99],[27,89,27,95],[27,96,27,99],[19,83,27,88],[24,89,24,95],[24,96,24,99],[25,89,25,95],[25,96,25,99],[23,89,23,95],[23,96,23,99],[21,89,21,95],[21,96,21,99],[19,104,28,124],[18,117,18,120],[22,89,22,95],[22,96,22,99],[19,89,19,95],[19,96,19,99],[20,89,20,95],[20,96,20,99],[13,89,13,95],[13,96,13,99],[13,104,13,116],[13,117,13,120],[16,83,18,88],[16,89,16,95],[16,96,16,99],[16,104,16,116],[16,117,16,120],[17,89,17,95],[17,96,17,99],[17,104,17,116],[17,117,17,120],[18,89,18,95],[18,96,18,99],[18,104,18,116],[15,104,15,116],[15,117,15,120],[12,96,12,99],[12,104,12,116],[12,117,12,120],[10,83,15,88],[10,89,10,95],[10,96,10,99],[10,104,10,116],[10,117,10,120],[11,89,11,95],[11,96,11,99],[11,104,11,116],[11,117,11,120],[12,89,12,95],[14,89,14,95],[14,96,14,99],[14,104,14,116],[14,117,14,120],[15,89,15,95],[15,96,15,99],[9,117,9,120],[6,89,6,95],[6,96,6,99],[6,104,6,116],[6,117,6,120],[7,89,7,95],[7,96,7,99],[7,104,7,116],[7,117,7,120],[0,0,0,122],[4,1,28,79],[4,96,4,99],[4,103,4,116],[4,117,4,120],[5,83,5,95],[5,104,5,116],[5,117,5,120],[6,83,9,88],[8,89,8,95],[8,96,8,99],[8,104,8,116],[8,117,8,120],[9,89,9,95],[9,96,9,99],[9,104,9,116]]}
["令和２年度　発注の見通しの公表について(令和２年７月現在）【工事】"]
[]
[null,null,null,null,null,null,null,null,null,null,null,null,null,null,null,null,null,null,null,null,null,null,null,null,null,null,null,null,null,null,null,null,null,null,null,null,null,null,null,null,null,null,null,null,null,null,null,null,null,null,null,null,null,null,null,null,null,null,null,null,null,null,null,null,null,null,null,null,null,null,null,null,null,null,null,null,null,null,null,null,null,null,null,"地域グループ",null,null,null,null,null,null,null,null,null,null,null,null,null,null,null,null,null,null,null,"区分グループ"]
[]
[null,null,null,null,null,null,null,null,null,null,null,null,null,null,null,null,null,null,null,null,null,null,null,null,null,null,null,null,null,null,null,null,null,null,null,null,null,null,null,null,null,null,null,null,null,null,null,null,null,null,null,null,null,null,null,null,null,null,null,null,null,null,null,null,null,null,null,null,null,null,null,null,null,null,null,null,null,null,null,null,null,null,null,"地区",null,null,null,null,null,"地域",null,null,null,null,null,null,"件数",null,null,null,null,null,null,"区分",null,null,null,null,null,null,null,null,null,null,null,null,null,"件数"]
[]
[null,null,null,null,null,null,null,null,null,null,null,null,null,null,null,null,null,null,null,null,null,null,null,null,null,null,null,null,null,null,null,null,null,null,null,null,null,null,null,null,null,null,null,null,null,null,null,null,null,null,null,null,null,null,null,null,null,null,null,null,null,null,null,null,null,null,null,null,null,null,null,null,null,null,null,null,null,null,null,null,null,null,null,"北海道",null,null,null,null,null,"道東",null,null,null,null,null,null,{"$f":"'地域、区分検索結果'!AA5","v":12},null,null,null,null,null,null,null,"土木工事業",null,null,null,null,null,null,null,null,null,null,null,null,{"$f":"'地域、区分検索結果'!BA5","v":4}]
[null,null,null,null,null,null,null,null,null,null,null,null,null,null,null,null,null,null,null,null,null,null,null,null,null,null,null,null,null,null,null,null,null,null,null,null,null,null,null,null,null,null,null,null,null,null,null,null,null,null,null,null,null,null,null,null,null,null,null,null,null,null,null,null,null,null,null,null,null,null,null,null,null,null,null,null,null,null,null,null,null,null,null,null,null,null,null,null,null,"道央",null,null,null,null,null,null,{"$f":"'地域、区分検索結果'!AB5","v":7},null,null,null,null,null,null,null,"建築工事業",null,null,null,null,null,null,null,null,null,null,null,null,{"$f":"'地域、区分検索結果'!BB5","v":23}]
[null,null,null,null,null,null,null,null,null,null,null,null,null,null,null,null,null,null,null,null,null,null,null,null,null,null,null,null,null,null,null,null,null,null,null,null,null,null,null,null,null,null,null,null,null,null,null,null,null,null,null,null,null,null,null,null,null,null,null,null,null,null,null,null,null,null,null,null,null,null,null,null,null,null,null,null,null,null,null,null,null,null,null,null,null,null,null,null,null,"道北",null,null,null,null,null,null,{"$f":"'地域、区分検索結果'!AC5","v":11},null,null,null,null,null,null,null,"電気工事業",null,null,null,null,null,null,null,null,null,null,null,null,{"$f":"'地域、区分検索結果'!BC5","v":14}]
[null,null,null,null,null,null,null,null,null,null,null,null,null,null,null,null,null,null,null,null,null,null,null,null,null,null,null,null,null,null,null,null,null,null,null,null,null,null,null,null,null,null,null,null,null,null,null,null,null,null,null,null,null,null,null,null,null,null,null,null,null,null,null,null,null,null,null,null,null,null,null,null,null,null,null,null,null,null,null,null,null,null,null,null,null,null,null,null,null,"道南",null,null,null,null,null,null,{"$f":"'地域、区分検索結果'!AD5","v":12},null,null,null,null,null,null,null,"管工事業",null,null,null,null,null,null,null,null,null,null,null,null,{"$f":"'地域、区分検索結果'!BD5","v":20}]
[null,null,null,null,null,null,null,null,null,null,null,null,null,null,null,null,null,null,null,null,null,null,null,null,null,null,null,null,null,null,null,null,null,null,null,null,null,null,null,null,null,null,null,null,null,null,null,null,null,null,null,null,null,null,null,null,null,null,null,null,null,null,null,null,null,null,null,null,null,null,null,null,null,null,null,null,null,null,null,null,null,null,null,"東北",null,null,null,null,null,"青森",null,null,null,null,null,null,{"$f":"'地域、区分検索結果'!AE5","v":7},null,null,null,null,null,null,null,"綱構造物工事業",null,null,null,null,null,null,null,null,null,null,null,null,{"$f":"'地域、区分検索結果'!BE5","v":1}]
[null,null,null,null,null,null,null,null,null,null,null,null,null,null,null,null,null,null,null,null,null,null,null,null,null,null,null,null,null,null,null,null,null,null,null,null,null,null,null,null,null,null,null,null,null,null,null,null,null,null,null,null,null,null,null,null,null,null,null,null,null,null,null,null,null,null,null,null,null,null,null,null,null,null,null,null,null,null,null,null,null,null,null,null,null,null,null,null,null,"岩手",null,null,null,null,null,null,{"$f":"'地域、区分検索結果'!AF5","v":0},null,null,null,null,null,null,null,"ほ装工事業",null,null,null,null,null,null,null,null,null,null,null,null,{"$f":"'地域、区分検索結果'!BF5","v":1}]
[null,null,null,null,null,null,null,null,null,null,null,null,null,null,null,null,null,null,null,null,null,null,null,null,null,null,null,null,null,null,null,null,null,null,null,null,null,null,null,null,null,null,null,null,null,null,null,null,null,null,null,null,null,null,null,null,null,null,null,null,null,null,null,null,null,null,null,null,null,null,null,null,null,null,null,null,null,null,null,null,null,null,null,null,null,null,null,null,null,"宮城",null,null,null,null,null,null,{"$f":"'地域、区分検索結果'!AG5","v":4},null,null,null,null,null,null,null,"塗装工事業",null,null,null,null,null,null,null,null,null,null,null,null,{"$f":"'地域、区分検索結果'!BG5","v":0}]
[null,null,null,null,null,null,null,null,null,null,null,null,null,null,null,null,null,null,null,null,null,null,null,null,null,null,null,null,null,null,null,null,null,null,null,null,null,null,null,null,null,null,null,null,null,null,null,null,null,null,null,null,null,null,null,null,null,null,null,null,null,null,null,null,null,null,null,null,null,null,null,null,null,null,null,null,null,null,null,null,null,null,null,null,null,null,null,null,null,"秋田",null,null,null,null,null,null,{"$f":"'地域、区分検索結果'!AH5","v":3},null,null,null,null,null,null,null,"機械器具設置工事業",null,null,null,null,null,null,null,null,null,null,null,null,{"$f":"'地域、区分検索結果'!BH5","v":2}]
[null,null,null,null,null,null,null,null,null,null,null,null,null,null,null,null,null,null,null,null,null,null,null,null,null,null,null,null,null,null,null,null,null,null,null,null,null,null,null,null,null,null,null,null,null,null,null,null,null,null,null,null,null,null,null,null,null,null,null,null,null,null,null,null,null,null,null,null,null,null,null,null,null,null,null,null,null,null,null,null,null,null,null,null,null,null,null,null,null,"山形",null,null,null,null,null,null,{"$f":"'地域、区分検索結果'!AI5","v":2},null,null,null,null,null,null,null,"電気通信工事業",null,null,null,null,null,null,null,null,null,null,null,null,{"$f":"'地域、区分検索結果'!BI5","v":53}]
[null,null,null,null,null,null,null,null,null,null,null,null,null,null,null,null,null,null,null,null,null,null,null,null,null,null,null,null,null,null,null,null,null,null,null,null,null,null,null,null,null,null,null,null,null,null,null,null,null,null,null,null,null,null,null,null,null,null,null,null,null,null,null,null,null,null,null,null,null,null,null,null,null,null,null,null,null,null,null,null,null,null,null,null,null,null,null,null,null,"福島",null,null,null,null,null,null,{"$f":"'地域、区分検索結果'!AJ5","v":3},null,null,null,null,null,null,null,"造園工事業",null,null,null,null,null,null,null,null,null,null,null,null,{"$f":"'地域、区分検索結果'!BJ5","v":0}]
[null,null,null,null,null,null,null,null,null,null,null,null,null,null,null,null,null,null,null,null,null,null,null,null,null,null,null,null,null,null,null,null,null,null,null,null,null,null,null,null,null,null,null,null,null,null,null,null,null,null,null,null,null,null,null,null,null,null,null,null,null,null,null,null,null,null,null,null,null,null,null,null,null,null,null,null,null,null,null,null,null,null,null,"北陸",null,null,null,null,null,"新潟",null,null,null,null,null,null,{"$f":"'地域、区分検索結果'!AT5","v":10},null,null,null,null,null,null,null,"水道施設工事業",null,null,null,null,null,null,null,null,null,null,null,null,{"$f":"'地域、区分検索結果'!BK5","v":0}]
[null,null,null,null,null,null,null,null,null,null,null,null,null,null,null,null,null,null,null,null,null,null,null,null,null,null,null,null,null,null,null,null,null,null,null,null,null,null,null,null,null,null,null,null,null,null,null,null,null,null,null,null,null,null,null,null,null,null,null,null,null,null,null,null,null,null,null,null,null,null,null,null,null,null,null,null,null,null,null,null,null,null,null,null,null,null,null,null,null,"-",null,null,null,null,null,null,"-",null,null,null,null,null,null,null,"消防施設",null,null,null,null,null,null,null,null,null,null,null,null,{"$f":"'地域、区分検索結果'!BL5","v":0}]
[null,null,null,null,null,null,null,null,null,null,null,null,null,null,null,null,null,null,null,null,null,null,null,null,null,null,null,null,null,null,null,null,null,null,null,null,null,null,null,null,null,null,null,null,null,null,null,null,null,null,null,null,null,null,null,null,null,null,null,null,null,null,null,null,null,null,null,null,null,null,null,null,null,null,null,null,null,null,null,null,null,null,null,null,null,null,null,null,null,"-",null,null,null,null,null,null,"-"]
[null,null,null,null,null,null,null,null,null,null,null,null,null,null,null,null,null,null,null,null,null,null,null,null,null,null,null,null,null,null,null,null,null,null,null,null,null,null,null,null,null,null,null,null,null,null,null,null,null,null,null,null,null,null,null,null,null,null,null,null,null,null,null,null,null,null,null,null,null,null,null,null,null,null,null,null,null,null,null,null,null,null,null,"関東",null,null,null,null,null,"茨城",null,null,null,null,null,null,{"$f":"'地域、区分検索結果'!AK5","v":5},null,null,null,null,null,null,null,"【備考】\n・地域グループの件数については、該当地域内に複数該当する場合は複数のカウントで計上しています。"]
[null,null,null,null,null,null,null,null,null,null,null,null,null,null,null,null,null,null,null,null,null,null,null,null,null,null,null,null,null,null,null,null,null,null,null,null,null,null,null,null,null,null,null,null,null,null,null,null,null,null,null,null,null,null,null,null,null,null,null,null,null,null,null,null,null,null,null,null,null,null,null,null,null,null,null,null,null,null,null,null,null,null,null,null,null,null,null,null,null,"栃木",null,null,null,null,null,null,{"$f":"'地域、区分検索結果'!AL5","v":0}]
[null,null,null,null,null,null,null,null,null,null,null,null,null,null,null,null,null,null,null,null,null,null,null,null,null,null,null,null,null,null,null,null,null,null,null,null,null,null,null,null,null,null,null,null,null,null,null,null,null,null,null,null,null,null,null,null,null,null,null,null,null,null,null,null,null,null,null,null,null,null,null,null,null,null,null,null,null,null,null,null,null,null,null,null,null,null,null,null,null,"群馬",null,null,null,null,null,null,{"$f":"'地域、区分検索結果'!AM5","v":0}]
[null,null,null,null,null,null,null,null,null,null,null,null,null,null,null,null,null,null,null,null,null,null,null,null,null,null,null,null,null,null,null,null,null,null,null,null,null,null,null,null,null,null,null,null,null,null,null,null,null,null,null,null,null,null,null,null,null,null,null,null,null,null,null,null,null,null,null,null,null,null,null,null,null,null,null,null,null,null,null,null,null,null,null,null,null,null,null,null,null,"埼玉",null,null,null,null,null,null,{"$f":"'地域、区分検索結果'!AN5","v":3}]
[null,null,null,null,null,null,null,null,null,null,null,null,null,null,null,null,null,null,null,null,null,null,null,null,null,null,null,null,null,null,null,null,null,null,null,null,null,null,null,null,null,null,null,null,null,null,null,null,null,null,null,null,null,null,null,null,null,null,null,null,null,null,null,null,null,null,null,null,null,null,null,null,null,null,null,null,null,null,null,null,null,null,null,null,null,null,null,null,null,"千葉",null,null,null,null,null,null,{"$f":"'地域、区分検索結果'!AO5","v":4}]
[null,null,null,null,null,null,null,null,null,null,null,null,null,null,null,null,null,null,null,null,null,null,null,null,null,null,null,null,null,null,null,null,null,null,null,null,null,null,null,null,null,null,null,null,null,null,null,null,null,null,null,null,null,null,null,null,null,null,null,null,null,null,null,null,null,null,null,null,null,null,null,null,null,null,null,null,null,null,null,null,null,null,null,null,null,null,null,null,null,"東京",null,null,null,null,null,null,{"$f":"'地域、区分検索結果'!AP5","v":37}]
[null,null,null,null,null,null,null,null,null,null,null,null,null,null,null,null,null,null,null,null,null,null,null,null,null,null,null,null,null,null,null,null,null,null,null,null,null,null,null,null,null,null,null,null,null,null,null,null,null,null,null,null,null,null,null,null,null,null,null,null,null,null,null,null,null,null,null,null,null,null,null,null,null,null,null,null,null,null,null,null,null,null,null,null,null,null,null,null,null,"神奈川",null,null,null,null,null,null,{"$f":"'地域、区分検索結果'!AQ5","v":2}]
[null,null,null,null,null,null,null,null,null,null,null,null,null,null,null,null,null,null,null,null,null,null,null,null,null,null,null,null,null,null,null,null,null,null,null,null,null,null,null,null,null,null,null,null,null,null,null,null,null,null,null,null,null,null,null,null,null,null,null,null,null,null,null,null,null,null,null,null,null,null,null,null,null,null,null,null,null,null,null,null,null,null,null,null,null,null,null,null,null,"山梨",null,null,null,null,null,null,{"$f":"'地域、区分検索結果'!AR5","v":0}]
[null,null,null,null,null,null,null,null,null,null,null,null,null,null,null,null,null,null,null,null,null,null,null,null,null,null,null,null,null,null,null,null,null,null,null,null,null,null,null,null,null,null,null,null,null,null,null,null,null,null,null,null,null,null,null,null,null,null,null,null,null,null,null,null,null,null,null,null,null,null,null,null,null,null,null,null,null,null,null,null,null,null,null,null,null,null,null,null,null,"長野",null,null,null,null,null,null,{"$f":"'地域、区分検索結果'!AS5","v":0}]
[null,null,null,null,null,null,null,null,null,null,null,null,null,null,null,null,null,null,null,null,null,null,null,null,null,null,null,null,null,null,null,null,null,null,null,null,null,null,null,null,null,null,null,null,null,null,null,null,null,null,null,null,null,null,null,null,null,null,null,null,null,null,null,null,null,null,null,null,null,null,null,null,null,null,null,null,null,null,null,null,null,null,null,"中部",null,null,null,null,null,"静岡",null,null,null,null,null,null,{"$f":"'地域、区分検索結果'!AU5","v":0}]

{"sheet":"地域、区分検索結果","index":2,"n_rows":202,"n_cols":79,"rows_kept":202,"cut":false,"hidden":false,"merged":[[13,78,14,78],[13,66,14,66],[13,65,14,65],[13,64,14,64],[13,63,14,63],[13,38,14,38],[13,6,13,9],[13,17,14,17],[13,62,14,62],[13,61,14,61],[13,60,14,60],[13,58,14,58],[13,57,14,57],[13,10,14,10],[13,34,14,34],[13,11,14,11],[13,45,14,45],[13,46,14,46],[13,52,14,52],[13,31,14,31],[13,32,14,32],[10,0,10,13],[5,0,5,13],[13,56,14,56],[13,59,14,59],[2,29,3,29],[0,12,0,13],[2,0,2,13],[2,26,3,26],[2,27,3,27],[2,28,3,28],[3,1,3,11],[2,41,3,41],[7,1,7,3],[8,1,8,3],[11,0,11,13],[7,5,7,10],[8,5,9,10],[13,55,14,55],[13,44,14,44],[13,54,14,54],[12,0,12,13],[13,33,14,33],[13,28,14,28],[13,29,14,29],[2,78,3,78],[4,0,4,13],[6,0,6,13],[6,52,6,55],[2,30,3,30],[2,63,3,63],[2,64,3,64],[2,65,3,65],[2,66,3,66],[2,42,3,42],[2,43,3,43],[2,44,3,44],[2,45,3,45],[2,36,3,36],[2,37,3,37],[2,38,3,38],[2,39,3,39],[2,40,3,40],[2,75,3,75],[2,76,3,76],[2,77,3,77],[2,61,3,61],[2,62,3,62],[2,46,3,46],[13,0,14,0],[13,16,14,16],[13,53,14,53],[13,35,14,35],[13,36,14,36],[13,37,14,37],[13,1,14,1],[13,2,14,2],[13,3,14,3],[13,4,13,5],[13,13,14,13],[13,26,14,26],[13,27,14,27],[13,12,14,12],[13,39,14,39],[13,40,14,40],[13,41,14,41],[13,42,14,42],[13,43,14,43],[13,30,14,30],[13,18,14,18],[12,26,12,29],[2,67,3,67],[2,68,3,68],[2,69,3,69],[2,70,3,70],[2,71,3,71],[2,72,3,72],[2,73,3,73],[2,74,3,74],[2,52,3,52],[2,53,3,53],[2,54,3,54],[2,55,3,55],[2,56,3,56],[2,57,3,57],[2,58,3,58],[2,59,3,59],[2,60,3,60],[2,31,3,31],[2,32,3,32],[2,33,3,33],[2,34,3,34],[2,35,3,35]]}
[null,null,null,null,null,null,null,null,null,null,null,null,"東京航空局"]
[]
[{"$f":"'地域、区分から検索'!A1","v":"令和２年度　発注の見通しの公表について(令和２年７月現在）【工事】"},null,null,null,null,null,null,null,null,null,null,null,null,null,null,null,null,null,null,null,null,null,null,null,null,null,"道東","道央","道北","道南","青森","岩手","宮城","秋田","山形","福島","茨城","栃木","群馬","埼玉","千葉","東京","神奈川","山梨","長野","新潟","鈴岡",null,null,null,null,null,"土木","建築","電気工事","管","鋼構造物","ほ装","塗装","機械器具","電気通信","造園","水道","消防",null,null,null,null,null,null,null,null,null,null,null,null,null,null,"マクロリセット用"]
[]
[null,null,null,null,null,null,null,null,null,null,null,null,null,null,null,null,null,null,null,null,null,null,null,null,null,null,{"$f":"SUM(AA16:AA202)","v":12},7,11,12,7,0,4,3,2,3,5,0,0,3,4,37,2,0,0,10,0,null,null,null,null,null,{"$f":"SUM(BA16:BA202)","v":4},23,14,20,1,1,0,2,53,0,0,0,null,null,null,null,null,null,null,null,null,null,null,null,null,null,{"$f":"SUM(CA16:CA202)","v":7}]
["  東京航空局における令和２年度の発注の見通しについて、下記のとおり公表します。\n  実際に発注する案件がこの掲載と異なる場合、ここに掲載されない案件が発注される場合があります。"]
[]
["概要：",{"$f":"一覧表から検索!B8","v":"令和２年７月１日現在の計画等"},null,null,null,{"$f":"IF(COUNTA($A$16:$BM$202)<>SUBTOTAL(3,$A$16:$BM$202),\"フィルター動作中\",\"フィルター解除中\")","v":"フィルター動作中"}]
["分類：",{"$f":"一覧表から検索!B9","v":"工事"},null,null,null,"・↑：「フィルター動作中」表示されない場合、「一覧から検索」シートでの操作をお願いします。"]
[]
["１．当該月の計画又は実施案件：■（セルを緑系網掛で表示）"]
["２．新規に追加した案件　　　：■（セルを黄色系網掛で表示）なお、新規案件が当該月の計画又は実施案件の予定の場合は緑系網掛で表示",null,null,null,null,null,null,null,null,null,null,null,null,null,null,null,17,null,null,20,null,null,null,null,null,null,27,null,null,null,null,null,null,null,null,null,null,null,null,null,null,null,null,null,null,null,47,null,null,null,null,null,53,null,null,null,null,null,null,60,null,null,null,null,null,null,null,null,null,null,null,null,null,null,null,null,null,null,79]
["３．修正した項目　　　　　　：赤文字又は取消し線（削除のみの場合）",null,null,null,null,null,null,null,null,null,null,null,null,null,null,null,null,null,null,null,null,null,null,null,null,null,"別式",null,null,null,null,null,null,null,null,null,null,null,null,null,null,null,null,null,null,null,null,null,null,null,null,null,null,null,null,null,null,null,null,null,null,null,null,null,null,null,null,null,null,null,null,null,null,null,null,null,null,null,"注"]
["ＮＯ","官署名","入札方式等","計画名称等","工事の場所",null,"計画時期",null,null,null,"計画工事種別","工事の概要","参考\n（入札予定時期）","参考\n（公告予定時期）",null,null,"選定案件","課室名","事情により「期間（目安）」を手入力する場合",null,null,null,null,null,null,null,"道東","道央","道北","道南","青森","岩手","宮城","秋田","山形","福島","茨城","栃木","群馬","埼玉","千葉","東京","神奈川","山梨","長野","新潟","静岡",null,null,null,null,null,"土木","建築","電気工事","管","鋼構造物","ほ装","塗装","機械器具","電気通信","造園","水道","消防",null,null,null,null,null,null,null,null,null,null,null,null,null,null,"マクロ"]
[null,null,null,null,"都道府県","都道府県・区・市町村\n空港名等の場所","自","至","期間\n（目安）"]
[1,"東京航空局","一般競争","三沢空港除雪ゲート改修工事","青森県","青森県三沢市\n三沢空港","2020-08-01","2020-12-01",{"$f":"IF(S16>0,S16,DATEDIF(G16,H16,\"M\")+1)","v":5},{"$f":"IF(S16>0,\"※\",\"\")","v":""},"土木工事","三沢空港の除雪ゲート改修","第2四半期","第2四半期",null,null,null,"土建課",null,null,null,null,null,null,null,null,{"$f":"COUNTIF($F16,\"*中標津*\")+COUNTIF($F16,\"*釧路*\")+COUNTIF($F16,\"*帯広*\")","v":0},{"$f":"COUNTIF($F16,\"*丘珠*\")+COUNTIF($F16,\"*新千歳*\")","v":0},{"$f":"COUNTIF($F16,\"*稚内*\")+COUNTIF($F16,\"*礼文*\")+COUNTIF($F16,\"*利尻*\")+COUNTIF($F16,\"*紋別*\")+COUNTIF($F16,\"*女満別*\")+COUNTIF($F16,\"*旭川*\")","v":0},{"$f":"COUNTIF($F16,\"*函館*\")+COUNTIF($F16,\"*奥尻*\")","v":0},{"$f":"IF(COUNTIF($E16,\"*青森*\"),1,0)","v":1},{"$f":"IF(COUNTIF($E16,\"*岩手*\"),1,0)","v":0},{"$f":"IF(COUNTIF($E16,\"*宮城*\"),1,0)","v":0},{"$f":"IF(COUNTIF($E16,\"*秋田*\"),1,0)","v":0},{"$f":"IF(COUNTIF($E16,\"*山形*\"),1,0)","v":0},{"$f":"IF(COUNTIF($E16,\"*福島*\"),1,0)","v":0},{"$f":"IF(COUNTIF($E16,\"*茨城*\"),1,0)","v":0},{"$f":"IF(COUNTIF($E16,\"*栃木*\"),1,0)","v":0},null,{"$f":"IF(COUNTIF($E16,\"*埼玉*\"),1,0)","v":0},{"$f":"IF(COUNTIF($E16,\"*千葉*\"),1,0)","v":0},{"$f":"IF(COUNTIF($E16,\"*東京*\"),1,0)","v":0},{"$f":"IF(COUNTIF($E16,\"*神奈川*\"),1,0)","v":0},{"$f":"IF(COUNTIF($E16,\"*山梨*\"),1,0)","v":0},null,{"$f":"IF(COUNTIF($E16,\"*新潟*\"),1,0)","v":0},{"$f":"IF(COUNTIF($E16,\"*静岡*\"),1,0)","v":0},null,null,null,null,null,{"$f":"IF(COUNTIF($K16,\"*土木*\"),1,0)","v":1},{"$f":"IF(COUNTIF($K16,\"*建築*\"),1,0)","v":0},{"$f":"IF(COUNTIF($K16,\"*電気工事*\"),1,0)","v":0},{"$f":"IF(COUNTIF($K16,\"*管*\"),1,0)","v":0},{"$f":"IF(COUNTIF($K16,\"*鋼構造物*\"),1,0)","v":0},{"$f":"IF(COUNTIF($K16,\"*ほ装*\"),1,0)","v":0},{"$f":"IF(COUNTIF($K16,\"*塗装*\"),1,0)","v":0},{"$f":"IF(COUNTIF($K16,\"*機械器具*\"),1,0)","v":0},{"$f":"IF(COUNTIF($K16,\"*電気通信*\"),1,0)","v":0},{"$f":"IF(COUNTIF($K16,\"*造園*\"),1,0)","v":0},{"$f":"IF(COUNTIF($K16,\"*水道*\"),1,0)","v":0},{"$f":"IF(COUNTIF($K16,\"*消防*\"),1,0)","v":0},null,null,null,null,null,null,null,null,null,null,null,null,null,null,0]
[{"$f":"A16+1","v":2},"東京航空局","一般競争","東京国際空港下水道管路改修工事","東京都","東京都大田区\n東京国際空港","2020-12-01","2022-03-01",16,"","土木工事","東京国際空港のＮ地区の雨水排水管路の老朽化更新及び雨水貯留施設新設等","第3四半期","第2四半期",null,null,null,"土建課",null,null,null,null,null,null,null,null,{"$f":"COUNTIF($F17,\"*中標津*\")+COUNTIF($F17,\"*釧路*\")+COUNTIF($F17,\"*帯広*\")","v":0},{"$f":"COUNTIF($F17,\"*丘珠*\")+COUNTIF($F17,\"*新千歳*\")","v":0},{"$f":"COUNTIF($F17,\"*稚内*\")+COUNTIF($F17,\"*礼文*\")+COUNTIF($F17,\"*利尻*\")+COUNTIF($F17,\"*紋別*\")+COUNTIF($F17,\"*女満別*\")+COUNTIF($F17,\"*旭川*\")","v":0},{"$f":"COUNTIF($F17,\"*函館*\")+COUNTIF($F17,\"*奥尻*\")","v":0},{"$f":"IF(COUNTIF($E17,\"*青森*\"),1,0)","v":0},{"$f":"IF(COUNTIF($E17,\"*岩手*\"),1,0)","v":0},{"$f":"IF(COUNTIF($E17,\"*宮城*\"),1,0)","v":0},{"$f":"IF(COUNTIF($E17,\"*秋田*\"),1,0)","v":0},{"$f":"IF(COUNTIF($E17,\"*山形*\"),1,0)","v":0},{"$f":"IF(COUNTIF($E17,\"*福島*\"),1,0)","v":0},{"$f":"IF(COUNTIF($E17,\"*茨城*\"),1,0)","v":0},{"$f":"IF(COUNTIF($E17,\"*栃木*\"),1,0)","v":0},null,{"$f":"IF(COUNTIF($E17,\"*埼玉*\"),1,0)","v":0},{"$f":"IF(COUNTIF($E17,\"*千葉*\"),1,0)","v":0},{"$f":"IF(COUNTIF($E17,\"*東京*\"),1,0)","v":1},{"$f":"IF(COUNTIF($E17,\"*神奈川*\"),1,0)","v":0},{"$f":"IF(COUNTIF($E17,\"*山梨*\"),1,0)","v":0},null,{"$f":"IF(COUNTIF($E17,\"*新潟*\"),1,0)","v":0},{"$f":"IF(COUNTIF($E17,\"*静岡*\"),1,0)","v":0},null,null,null,null,null,{"$f":"IF(COUNTIF($K17,\"*土木*\"),1,0)","v":1},{"$f":"IF(COUNTIF($K17,\"*建築*\"),1,0)","v":0},{"$f":"IF(COUNTIF($K17,\"*電気工事*\"),1,0)","v":0},{"$f":"IF(COUNTIF($K17,\"*管*\"),1,0)","v":0},{"$f":"IF(COUNTIF($K17,\"*鋼構造物*\"),1,0)","v":0},{"$f":"IF(COUNTIF($K17,\"*ほ装*\"),1,0)","v":0},{"$f":"IF(COUNTIF($K17,\"*塗装*\"),1,0)","v":0},{"$f":"IF(COUNTIF($K17,\"*機械器具*\"),1,0)","v":0},{"$f":"IF(COUNTIF($K17,\"*電気通信*\"),1,0)","v":0},{"$f":"IF(COUNTIF($K17,\"*造園*\"),1,0)","v":0},{"$f":"IF(COUNTIF($K17,\"*水道*\"),1,0)","v":0},{"$f":"IF(COUNTIF($K17,\"*消防*\"),1,0)","v":0},null,null,null,null,null,null,null,null,null,null,null,null,null,null,0]
[{"$f":"A17+1","v":3},"東京航空局","一般競争","東京国際空港Ａ誘導路等舗装改修工事","東京都","東京都大田区\n東京国際空港","2020-09-01","2021-03-01",7,"","ほ装工事","東京国際空港のＡ誘導路等の舗装改修","第2四半期","第2四半期",null,null,null,"土建課",null,null,null,null,null,null,null,null,0,0,0,0,0,0,0,0,0,0,0,0,null,0,0,{"$f":"IF(COUNTIF($E18,\"*東京*\"),1,0)","v":1},0,0,null,0,0,null,null,null,null,null,0,0,0,0,0,1,0,0,0,0,0,0,null,null,null,null,null,null,null,null,null,null,null,null,null,null,0]
[4,"東京航空局","一般競争","新潟空港雨水排水管土砂撤去等工事","新潟県","新潟県新潟市\n新潟空港","2020-08-01","2021-01-01",6,"","土木工事","新潟空港の雨水排水管の土砂撤去等","第2四半期","第2四半期",null,null,null,"土建課",null,null,null,null,null,null,null,null,0,0,0,0,0,0,0,0,0,0,0,0,null,0,0,{"$f":"IF(COUNTIF($E19,\"*東京*\"),1,0)","v":0},0,0,null,1,0,null,null,null,null,null,1,0,0,0,0,0,0,0,0,0,0,0,null,null,null,null,null,null,null,null,null,null,null,null,null,null,0]
[5,"東京航空局","一般競争","東京国際空港ＧＳＥ通路改良工事","東京都","東京都大田区\n東京国際空港","2020-12-01","2021-03-01",4,"","土木工事","東京国際空港のＧＳＥ車両自動運転インフラ整備","第3四半期","第2四半期",null,null,null,"土建課",null,null,null,null,null,null,null,null,0,0,0,0,0,0,0,0,0,0,0,0,null,0,0,1,0,0,null,0,0,null,null,null,null,null,1,0,0,0,0,0,0,0,0,0,0,0,null,null,null,null,null,null,null,null,null,null,null,null,null,null,0]
[6,"東京航空局","一般競争","釧路空港ＶＯＲ／ＤＭＥカウンターポイズ新設その他工事","北海道","北海道釧路市\n釧路空港","2020-08-01","2021-03-01",{"$f":"IF(S21>0,S21,DATEDIF(G21,H21,\"M\")+1)","v":7},{"$f":"IF(S21>0,\"※\",\"\")","v":"※"},"建築工事","カウンターポイズ\n規模：S造、φ30m、高さ11m\n新設工事\n旧NDB局舎\n規模：RC造／平屋建\n建築面積：96.00㎡\n内装改修、外壁改修、屋上防水改修","第2四半期","第2四半期",null,null,null,"建築室",7,null,null,null,null,null,null,null,1,0,0,0,0,0,0,0,0,0,0,0,null,0,0,0,0,0,null,0,0,null,null,null,null,null,0,1,0,0,0,0,0,0,0,0,0,0,null,null,null,null,null,null,null,null,null,null,null,null,null,null,0]
[7,"東京航空局","一般競争","横須賀ＶＯＲ／ＤＭＥカウンターポイズ解体その他工事","神奈川県","神奈川県三浦郡葉山町\n横須賀VOR/DME","2020-09-01","2021-01-01",{"$f":"IF(S22>0,S22,DATEDIF(G22,H22,\"M\")+1)","v":5},{"$f":"IF(S22>0,\"※\",\"\")","v":""},"建築工事","カウンターポイズ\n規模：S造、φ50m、高さ3.28m\n解体工事\nVOR/DME局舎\n規模：ＲＣ造　建築面積　134.40㎡\n屋上防水改修一式　建具改修","第2四半期","第2四半期",null,null,null,"建築室",null,null,null,null,null,null,null,null,0,0,0,0,0,0,0,0,0,0,0,0,null,0,0,0,1,0,null,0,0,null,null,null,null,null,0,1,0,0,0,0,0,0,0,0,0,0,null,null,null,null,null,null,null,null,null,null,null,null,null,null,0]
[8,"東京航空局","一般競争","函館空港除雪車庫改修工事","北海道","北海道函館市\n函館空港","2020-09-01","2021-02-01",6,"","建築工事","除雪車庫①\n規模：RC造　平屋建　延)955.4㎡\n屋上防水、外壁改修\n除雪車庫②\n規模：RC造　平屋建　延)204㎡\n屋上防水、外壁改修、建具シャッター更新","第2四半期","第2四半期",null,null,null,"建築室",null,null,null,null,null,null,null,null,0,0,0,1,0,0,0,0,0,0,0,0,null,0,0,0,0,0,null,0,0,null,null,null,null,null,0,1,0,0,0,0,0,0,0,0,0,0,null,null,null,null,null,null,null,null,null,null,null,null,null,null,0]
[9,"東京航空局","一般競争","奥尻空港ＶＯＲ／ＤＭＥ局舎改修工事","北海道","北海道奥尻郡奥尻町\n奥尻VOR/DME","2020-08-01","2021-01-01",6,"","建築工事","規模：RC造　平屋建　延)164.11㎡\n老朽化対策 一式、耐震改修 一式\n給油シャッター改修 一式","第2四半期","第2四半期",null,null,null,"建築室",null,null,null,null,null,null,null,null,0,0,0,1,0,0,0,0,0,0,0,0,null,0,0,0,0,0,null,0,0,null,null,null,null,null,0,1,0,0,0,0,0,0,0,0,0,0,null,null,null,null,null,null,null,null,null,null,null,null,null,null,0]
[10,"東京航空局","一般競争","東京国際空港東側消防車庫増築工事","東京都","東京都大田区\n東京国際空港","2020-08-01","2021-03-01",8,"","建築工事","消防車庫増築\n規模：RC造　平屋建\n建築面積：180㎡\n増築、電気設備、機械設備　一式","第2四半期","第2四半期",null,null,null,"建築室",null,null,null,null,null,null,null,null,0,0,0,0,0,0,0,0,0,0,0,0,null,0,0,1,0,0,null,0,0,null,null,null,null,null,0,1,0,0,0,0,0,0,0,0,0,0,null,null,null,null,null,null,null,null,null,null,null,null,null,null,0]
[11,"東京航空局","一般競争","東京国際空港貴賓室解体工事","東京都","東京都大田区\n東京国際空港","2020-08-01","2021-03-01",8,"","建築工事","貴賓室\n規模：ＲＣ造一部Ｓ造　平屋建\n建）1,614.30㎡ 延）1,303.27㎡\n解体一式","第2四半期","第2四半期",null,null,null,"建築室",null,null,null,null,null,null,null,null,0,0,0,0,0,0,0,0,0,0,0,0,null,0,0,1,0,0,null,0,0,null,null,null,null,null,0,1,0,0,0,0,0,0,0,0,0,0,null,null,null,null,null,null,null,null,null,null,null,null,null,null,0]
[12,"東京航空局","一般競争","新千歳空港可搬形電源設備第２保管庫新築工事","北海道","北海道千歳市\n新千歳空港","2020-10-01","2021-03-01",6,"","建築工事","可搬形第2保管庫\n規模RC造　平屋建\n建築面積：180㎡\n新築工事一式(電気、機械設備含む)","第2四半期","第2四半期",null,null,"07-01","建築室",null,null,null,null,null,null,null,null,0,1,0,0,0,0,0,0,0,0,0,0,null,0,0,0,0,0,null,0,0,null,null,null,null,null,0,1,0,0,0,0,0,0,0,0,0,0,null,null,null,null,null,null,null,null,null,null,null,null,null,null,0]
[13,"東京航空局","一般競争","稚内空港除雪車庫新築工事","北海道","北海道稚内市\n稚内空港","2021-02-01","2021-12-01",11,"","建築工事","除雪車庫新築\n規模：ＲＣ造　平屋建\n建築面積：920m2\n新築、外構、電気設備、機械設備　一式","第4四半期","第3四半期",null,null,null,"建築室",null,null,null,null,null,null,null,null,0,0,1,0,0,0,0,0,0,0,0,0,null,0,0,0,0,0,null,0,0,null,null,null,null,null,0,1,0,0,0,0,0,0,0,0,0,0,null,null,null,null,null,null,null,null,null,null,null,null,null,null,0]
[14,"東京航空局","一般競争","大島ＶＯＲＴＡＣ局舎改修工事","東京都","東京都大島町\n大島VORTAC","2020-09-01","2021-02-01",6,"","建築工事","規模：ＲＣ／ＣＢ造　平屋建\n建築面積：162.30m2\n外壁、耐震（構造体）、内部（ＣＢ壁転倒防止措置）、内部ＣＢ壁転倒防止措置に伴う内装・電気設備・機械設備　一式","第2四半期","第2四半期",null,null,null,"建築室",null,null,null,null,null,null,null,null,0,0,0,0,0,0,0,0,0,0,0,0,null,0,0,1,0,0,null,0,0,null,null,null,null,null,0,1,0,0,0,0,0,0,0,0,0,0,null,null,null,null,null,null,null,null,null,null,null,null,null,null,0]
[15,"東京航空局","一般競争","成田国際空港庁舎（管理棟）新築工事","千葉県","千葉県成田市\n成田国際空港","2021-01-01","2022-10-01",21,"※","建築工事","規模：ＲＣ造（一部Ｓ造）　7階建\n建築面積：746.65m2\n新築（増改築）、電気設備、機械設備　一式","第4四半期","第2四半期",null,null,null,"建築室",21,null,null,null,null,null,null,null,0,0,0,0,0,0,0,0,0,0,0,0,null,0,1,0,0,0,null,0,0,null,null,null,null,null,0,1,0,0,0,0,0,0,0,0,0,0,null,null,null,null,null,null,null,null,null,null,null,null,null,null,0]
[16,"東京航空局","一般競争","札幌航空交通管制部庁舎防水その他改修工事","北海道","北海道札幌市\n札幌航空交通管制部","2020-08-01","2020-12-01",5,"","建築工事","規模：RC造　5階建　建)3,693㎡\n屋上防水改修、内装補修　一式","第2四半期","第2四半期",null,null,null,"建築室",null,null,null,null,null,null,null,null,0,0,0,0,0,0,0,0,0,0,0,0,null,0,0,0,0,0,null,0,0,null,null,null,null,null,0,1,0,0,0,0,0,0,0,0,0,0,null,null,null,null,null,null,null,null,null,null,null,null,null,null,0]
[17,"東京航空局","一般競争","坂戸マイクロ局舎外１棟改修工事","埼玉県","埼玉県鶴ヶ島市\n友部HF","2020-10-01","2021-02-01",5,"","建築工事","マイクロ局舎\n規模：RC造　平屋建　延)338.8㎡\nエンジン局舎\n規模：RC造　平屋建　延)119㎡\n屋上防水、外壁改修　一式","第3四半期","第2四半期",null,null,null,"建築室",null,null,null,null,null,null,null,null,0,0,0,0,0,0,0,0,0,0,0,0,null,1,0,0,0,0,null,0,0,null,null,null,null,null,0,1,0,0,0,0,0,0,0,0,0,0,null,null,null,null,null,null,null,null,null,null,null,null,null,null,0]
[18,"東京航空局","一般競争","新潟空港除雪車庫改修工事","新潟県","新潟県新潟市\n新潟空港","2020-09-01","2021-01-01",5,"","建築工事","除雪車庫①\n規模：S造　平屋建　延)1038㎡\n除雪車庫②\n規模：S造　平屋建　延)591.05㎡\n外壁改修、建具改修　一式","第2四半期","第2四半期",null,null,null,"建築室",null,null,null,null,null,null,null,null,0,0,0,0,0,0,0,0,0,0,0,0,null,0,0,0,0,0,null,1,0,null,null,null,null,null,0,1,0,0,0,0,0,0,0,0,0,0,null,null,null,null,null,null,null,null,null,null,null,null,null,null,0]
[19,"東京航空局","一般競争","佐渡空港出張所庁舎解体工事","新潟県","新潟県佐渡市\n佐渡RAG","2020-09-01","2021-01-01",5,"","建築工事","規模：CB造　2階建　建)201㎡　延)217㎡\n解体工事","第2四半期","第2四半期",null,null,null,"建築室",null,null,null,null,null,null,null,null,0,0,0,0,0,0,0,0,0,0,0,0,null,0,0,0,0,0,null,1,0,null,null,null,null,null,0,1,0,0,0,0,0,0,0,0,0,0,null,null,null,null,null,null,null,null,null,null,null,null,null,null,0]
[20,"東京航空局","一般競争","いわき航空路監視レーダー事務所解体その他工事","福島県","福島県いわき市\nいわき基地","2020-09-01","2021-02-01",{"$f":"IF(S35>0,S35,DATEDIF(G35,H35,\"M\")+1)","v":6},"","建築工事","いわき航空路監視レーダー事務所\n規模：RC造　2階建\n建築面積：303.89㎡　延床面積：581.64㎡\n解体工事、電気設備、機械設備　一式\n\nいわきORSR局舎\n規模：RC造　2階建\n建築面積：216.56㎡　延床面積：441.47㎡\n防水改修一式　外壁改修一式　建具改修一式\n塗装改修一式、外構改修一式\n\nいわきVOR/DME局舎\n規模：S造　平屋建\n建築面積：140.44㎡　延床面積：140.44㎡\n防水改修一式　塗装改修一式　外構改修一式","第2四半期","第2四半期",null,null,null,"建築室",null,null,null,null,null,null,null,null,0,0,0,0,0,0,0,0,0,1,0,0,null,0,0,0,0,0,null,0,0,null,null,null,null,null,0,1,0,0,0,0,0,0,0,0,0,0,null,null,null,null,null,null,null,null,null,null,null,null,null,null,0]
[21,"東京航空局","一般競争","三沢空港上久保宿舎囲障更新工事","青森県","青森県三沢市\n三沢空港","2020-09-01","2020-12-01",4,"","建築工事","敷地周囲：243ｍ\nフェンス更新　一式","第2四半期","第2四半期",null,null,null,"建築室",null,null,null,null,null,null,null,null,0,0,0,0,1,0,0,0,0,0,0,0,null,0,0,0,0,0,null,0,0,null,null,null,null,null,0,1,0,0,0,0,0,0,0,0,0,0,null,null,null,null,null,null,null,null,null,null,null,null,null,null,0]
[22,"東京航空局","一般競争","蔵王山田ＶＯＲ局舎・カウンターポイズ解体工事","山形県","山形県山形市\n蔵王山田VOR","2020-08-01","2020-12-01",5,"","建築工事","VOR局舎\n規模：ＲＣ造　建築面積　141㎡\nカウンターポイズ\n規模：S造、φ30m、高さ7m\n解体工事","第2四半期","第2四半期",null,null,null,"建築室",null,null,null,null,null,null,null,null,0,0,0,0,0,0,0,0,1,0,0,0,null,0,0,0,0,0,null,0,0,null,null,null,null,null,0,1,0,0,0,0,0,0,0,0,0,0,null,null,null,null,null,null,null,null,null,null,null,null,null,null,0]
[23,"東京航空局","一般競争","箱根送信局舎外３棟改修工事","神奈川県","神奈川県足柄下郡箱根町\n箱根RCAG　（送信機）","2020-09-01","2020-12-01",4,"","建築工事","送信局舎\n規模：RC造　平屋建\n建築面積　248㎡　延床面積：248㎡\n屋上防水改修一式　コロニアル屋根改修一式\n建具改修一式　電気設備改修一式\n\n受信局舎\n規模：RC造平屋建　\n建築面積：33.28㎡　延床面積：33.28㎡\n屋上防水改修一式　電気設備改修一式\n\nマイクロ局舎\n規模：RC造　平屋建\n建築面積：53.67㎡　延床面積：53.67㎡\n屋上防水改修一式　電気設備改修一式\n\nARSR局舎\n規模：RC造　平屋建\n建築面積：335.29㎡　延床面積　335.29㎡\n建具改修一式　電気設備改修一式","第2四半期","第2四半期",null,null,null,"建築室",null,null,null,null,null,null,null,null,0,0,0,0,0,0,0,0,0,0,0,0,null,0,0,0,1,0,null,0,0,null,null,null,null,null,0,1,0,0,0,0,0,0,0,0,0,0,null,null,null,null,null,null,null,null,null,null,null,null,null,null,0]
[24,"東京航空局","一般競争","新千歳空港春日寮外壁改修工事","北海道","北海道千歳市\n春日寮","2020-09-01","2020-12-01",4,"","建築工事","春日寮\n規模：RC造　5階建\n建築面積：306㎡　延床面積　1,305.8㎡\n防水改修一式　外壁改修一式　建具改修一式\n内装改修一式　塗装改修一式　雑改修一式\n電気設備改修　一式","第2四半期","第2四半期",null,null,null,"建築室",null,null,null,null,null,null,null,null,0,0,0,0,0,0,0,0,0,0,0,0,null,0,0,0,0,0,null,0,0,null,null,null,null,null,0,1,0,0,0,0,0,0,0,0,0,0,null,null,null,null,null,null,null,null,null,null,null,null,null,null,0]
[25,"東京航空局","一般競争","新千歳空港Ａ・Ｂ連絡橋改修工事","北海道","北海道千歳市\n新千歳空港","2020-08-01","2020-12-01",5,"","建築工事","Ａ連絡橋\n規模：S造　2階建て\n延べ面積：808.12㎡\n改修工事一式\n\nB連絡橋\n規模：S造　2階建て\n延べ面積：807.95㎡\n改修工事一式","第2四半期","第2四半期",null,null,null,"建築室",null,null,null,null,null,null,null,null,0,1,0,0,0,0,0,0,0,0,0,0,null,0,0,0,0,0,null,0,0,null,null,null,null,null,0,1,0,0,0,0,0,0,0,0,0,0,null,null,null,null,null,null,null,null,null,null,null,null,null,null,0]
[{"$f":"A40+1","v":26},"東京航空局","一般競争","東京国際空港ＳＲＡ検査場新築工事","東京都","東京都大田区\n東京国際空港","2020-09-01","2021-03-01",7,"","建築工事","Ｔ２ゲート\n規模：S造　平屋建て\n延べ面積：504.96㎡\n新築、外構、電気設備、機械設備　一式\n\nC-1ゲート\n規模：S造　平屋建て\n延べ面積：550㎡\n新築、外構、電気設備、機械設備　一式\n\n旧整備場ゲート\n規模：S造　平屋建て\n延べ面積453.28㎡\n新築、外構、電気設備、機械設備　一式","第2四半期","第2四半期",null,null,null,"建築室",null,null,null,null,null,null,null,null,0,0,0,0,0,0,0,0,0,0,0,0,null,0,0,1,0,0,null,0,0,null,null,null,null,null,0,1,0,0,0,0,0,0,0,0,0,0,null,null,null,null,null,null,null,null,null,null,null,null,null,null,0]
[{"$f":"A41+1","v":27},"東京航空局","一般競争","東京国際空港雨水排水ポンプ場機械設備工事（その１）","東京都","東京都大田区\n東京国際空港","2020-10-01","2021-03-01",6,"","管工事又は機械器具設置工事","雨水排水ポンプの更新工事\n雨水排水ポンプ１式","第3四半期","第2四半期",null,null,null,"機械課",null,null,null,null,null,null,null,null,0,0,0,0,0,0,0,0,0,0,0,0,null,0,0,1,0,0,null,0,0,null,null,null,null,null,0,0,0,1,0,0,0,1,0,0,0,0,null,null,null,null,null,null,null,null,null,null,null,null,null,null,0]
[28,"東京航空局","一般競争","東京国際空港雨水排水ポンプ場監視設備工事","東京都","東京都大田区\n東京国際空港","2020-10-01","2021-03-01",6,"","電気工事又は電気通信工事","雨水排水ポンプ用監視設備の更新工事\n雨水排水ポンプ用監視設備１式","第3四半期","第2四半期",null,null,null,"機械課",null,null,null,null,null,null,null,null,0,0,0,0,0,0,0,0,0,0,0,0,null,0,0,1,0,0,null,0,0,null,null,null,null,null,0,0,1,0,0,0,0,0,1,0,0,0,null,null,null,null,null,null,null,null,null,null,null,null,null,null,0]
[29,"東京航空局","一般競争","東京国際空港立体駐車場発電設備工事","東京都","東京都大田区\n東京国際空港","2020-08-01","2021-03-01",8,"","機械器具設置工事又は電気工事","非常用発電機の更新工事\n非常用発電機　2台","第2四半期","第2四半期",null,null,null,"機械課",null,null,null,null,null,null,null,null,0,0,0,0,0,0,0,0,0,0,0,0,null,0,0,1,0,0,null,0,0,null,null,null,null,null,0,0,1,0,0,0,0,1,0,0,0,0,null,null,null,null,null,null,null,null,null,null,null,null,null,null,0]
[30,"東京航空局","一般競争","東京国際空港旧管制塔VFR室外空気調和設備工事","東京都","東京都大田区\n東京国際空港","2020-08-01","2021-03-01",8,"","管工事","旧管制塔用空気調和設備の更新工事\n空冷式パッケージ形空気調和機　8台\n空気調和装置動力制御盤　4面　","第2四半期","第2四半期",null,null,null,"機械課",null,null,null,null,null,null,null,null,0,0,0,0,0,0,0,0,0,0,0,0,null,0,0,1,0,0,null,0,0,null,null,null,null,null,0,0,0,1,0,0,0,0,0,0,0,0,null,null,null,null,null,null,null,null,null,null,null,null,null,null,0]
[31,"東京航空局","一般競争","東京国際空港西側電源局舎空気調和設備工事","東京都","東京都大田区\n東京国際空港","2020-10-01","2021-02-01",5,"","管工事","電源局舎の空気調和設備の更新工事\n空冷式パッケージ形空気調和機　4台\n空気調和装置動力制御盤　2面　","第3四半期","第2四半期",null,null,null,"機械課",null,null,null,null,null,null,null,null,0,0,0,0,0,0,0,0,0,0,0,0,null,0,0,1,0,0,null,0,0,null,null,null,null,null,0,0,0,1,0,0,0,0,0,0,0,0,null,null,null,null,null,null,null,null,null,null,null,null,null,null,0]
[32,"東京航空局","一般競争","東京国際空港Ｔ１０４上水ポンプ場圧力タンク設置工事","東京都","東京都大田区\n東京国際空港","2020-09-01","2021-02-01",6,"","管工事","圧力タンクの設置工事\n圧力タンク１式","第2四半期","第2四半期",null,null,null,"機械課",null,null,null,null,null,null,null,null,0,0,0,0,0,0,0,0,0,0,0,0,null,0,0,1,0,0,null,0,0,null,null,null,null,null,0,0,0,1,0,0,0,0,0,0,0,0,null,null,null,null,null,null,null,null,null,null,null,null,null,null,0]
[33,"東京航空局","一般競争","東京国際空港水質自動計測機器設置工事","東京都","東京都大田区\n東京国際空港","2020-10-01","2021-03-01",6,"","電気通信工事","水質自動計測機器の設置工事\n水質自動計測機器１式","第3四半期","第2四半期",null,null,null,"機械課",null,null,null,null,null,null,null,null,0,0,0,0,0,0,0,0,0,0,0,0,null,0,0,1,0,0,null,0,0,null,null,null,null,null,0,0,0,0,0,0,0,0,1,0,0,0,null,null,null,null,null,null,null,null,null,null,null,null,null,null,0]
[{"$f":"A48+1","v":34},"東京航空局","一般競争","新千歳空港ＦＳＣ機器室空気調和設備工事","北海道","北海道千歳市\n新千歳空港","2020-11-01","2021-03-01",5,"","管工事","空気調和設備の更新工事\n空冷式パッケージ形空気調和機　２台\n空気調和装置動力制御盤　1面　","第3四半期","第3四半期",null,null,null,"機械課",null,null,null,null,null,null,null,null,0,1,0,0,0,0,0,0,0,0,0,0,null,0,0,0,0,0,null,0,0,null,null,null,null,null,0,0,0,1,0,0,0,0,0,0,0,0,null,null,null,null,null,null,null,null,null,null,null,null,null,null,0]
[35,"東京航空局","一般競争","帯広空港庁舎機械設備工事","北海道","北海道帯広市\n帯広空港","2020-09-01","2021-02-01",6,"","管工事","空気調和設備の更新工事\n機械設備　１式","第2四半期","第2四半期",null,null,null,"機械課",null,null,null,null,null,null,null,null,1,0,0,0,0,0,0,0,0,0,0,0,null,0,0,0,0,0,null,0,0,null,null,null,null,null,0,0,0,1,0,0,0,0,0,0,0,0,null,null,null,null,null,null,null,null,null,null,null,null,null,null,0]
[36,"東京航空局","一般競争","函館空港電源局舎空気調和設備工事","北海道","北海道函館市\n函館空港","2020-09-01","2021-03-01",7,"","管工事","空気調和設備の更新工事\n空気調和設備１式","第2四半期","第2四半期",null,null,null,"機械課",null,null,null,null,null,null,null,null,0,0,0,1,0,0,0,0,0,0,0,0,null,0,0,0,0,0,null,0,0,null,null,null,null,null,0,0,0,1,0,0,0,0,0,0,0,0,null,null,null,null,null,null,null,null,null,null,null,null,null,null,0]
[37,"東京航空局","一般競争","函館空港除雪車庫空気調和設備工事","北海道","北海道函館市\n函館空港","2020-09-01","2021-03-01",7,"","管工事","空気調和設備の更新工事\n温風暖房機　１台　他","第2四半期","第2四半期",null,null,null,"機械課",null,null,null,null,null,null,null,null,0,0,0,1,0,0,0,0,0,0,0,0,null,0,0,0,0,0,null,0,0,null,null,null,null,null,0,0,0,1,0,0,0,0,0,0,0,0,null,null,null,null,null,null,null,null,null,null,null,null,null,null,0]
[38,"東京航空局","一般競争","函館空港ＡＳＲ／ＴＸ局舎空気調和設備工事","北海道","北海道函館市\n函館ASR/TX","2020-09-01","2021-03-01",7,"","管工事","空気調和設備の更新工事\n空冷式パッケージ形空気調和機　２台\n空気調和装置動力制御盤　1面　","第2四半期","第2四半期",null,null,null,"機械課",null,null,null,null,null,null,null,null,0,0,0,1,0,0,0,0,0,0,0,0,null,0,0,0,0,0,null,0,0,null,null,null,null,null,0,0,0,1,0,0,0,0,0,0,0,0,null,null,null,null,null,null,null,null,null,null,null,null,null,null,0]
[39,"東京航空局","一般競争","函館空港ＶＦＲ室外２カ所空気調和設備工事","北海道","北海道函館市\n函館空港","2020-09-01","2021-03-01",7,"","管工事","空気調和設備の更新工事\n空冷式パッケージ形空気調和機　６台\n空気調和装置動力制御盤　３面　","第2四半期","第2四半期",null,null,null,"機械課",null,null,null,null,null,null,null,null,0,0,0,1,0,0,0,0,0,0,0,0,null,0,0,0,0,0,null,0,0,null,null,null,null,null,0,0,0,1,0,0,0,0,0,0,0,0,null,null,null,null,null,null,null,null,null,null,null,null,null,null,0]
[40,"東京航空局","一般競争","中標津空港無線機器室空気調和設備工事","北海道","北海道標津郡中標津町\n中標津空港","2020-09-01","2021-01-01",5,"","管工事","空気調和設備の更新工事\n空冷式パッケージ形空気調和機　２台\n空気調和装置動力制御盤　1面　","第2四半期","第2四半期",null,null,null,"機械課",null,null,null,null,null,null,null,null,1,0,0,0,0,0,0,0,0,0,0,0,null,0,0,0,0,0,null,0,0,null,null,null,null,null,0,0,0,1,0,0,0,0,0,0,0,0,null,null,null,null,null,null,null,null,null,null,null,null,null,null,0]
[41,"東京航空局","一般競争","釧路空港ＶＯＲ／ＤＭＥ局舎空気調和設備","北海道","北海道釧路市\n釧路VOR/DME","2020-09-01","2021-01-01",5,"","管工事","空気調和設備の更新工事\n空冷式パッケージ形空気調和機　２台\n空気調和装置動力制御盤　1面　","第2四半期","第2四半期",null,null,null,"機械課",null,null,null,null,null,null,null,null,1,0,0,0,0,0,0,0,0,0,0,0,null,0,0,0,0,0,null,0,0,null,null,null,null,null,0,0,0,1,0,0,0,0,0,0,0,0,null,null,null,null,null,null,null,null,null,null,null,null,null,null,0]
[42,"東京航空局","一般競争","釧路空港電源局舎トイレ改修工事","北海道","北海道釧路市\n釧路空港","2020-11-01","2021-03-01",5,"","管工事","トイレの改修工事\nトイレ　１式","第3四半期","第3四半期",null,null,null,"機械課",null,null,null,null,null,null,null,null,1,0,0,0,0,0,0,0,0,0,0,0,null,0,0,0,0,0,null,0,0,null,null,null,null,null,0,0,0,1,0,0,0,0,0,0,0,0,null,null,null,null,null,null,null,null,null,null,null,null,null,null,0]
[43,"東京航空局","一般競争","青森空港庁舎無線機器室２用空気調和設備工事","青森県","青森県青森市\n青森空港","2020-08-01","2020-11-01",4,"","管工事","空気調和設備の更新工事\n空冷式パッケージ形空気調和機　２台\n空気調和装置動力制御盤　1面　","第2四半期","第2四半期",null,null,null,"機械課",null,null,null,null,null,null,null,null,0,0,0,0,1,0,0,0,0,0,0,0,null,0,0,0,0,0,null,0,0,null,null,null,null,null,0,0,0,1,0,0,0,0,0,0,0,0,null,null,null,null,null,null,null,null,null,null,null,null,null,null,0]
[44,"東京航空局","一般競争","青森空港ＳＳＲ局舎空気調和設備工事","青森県","青森県青森市\n青森空港","2020-12-01","2021-03-01",4,"","管工事","空気調和設備の更新工事\n空冷式パッケージ形空気調和機　２台\n空気調和装置動力制御盤　1面　","第3四半期","第3四半期",null,null,null,"機械課",null,null,null,null,null,null,null,null,0,0,0,0,1,0,0,0,0,0,0,0,null,0,0,0,0,0,null,0,0,null,null,null,null,null,0,0,0,1,0,0,0,0,0,0,0,0,null,null,null,null,null,null,null,null,null,null,null,null,null,null,0]
[45,"東京航空局","一般競争","山形空港無線機器室外空気調和設備工事","山形県","山形県東根市\n山形空港","2020-09-01","2021-01-01",5,"","管工事","空気調和設備の更新工事\n空冷式パッケージ形空気調和機　４台\n空気調和装置動力制御盤　２面　","第2四半期","第2四半期",null,null,null,"機械課",null,null,null,null,null,null,null,null,0,0,0,0,0,0,0,0,1,0,0,0,null,0,0,0,0,0,null,0,0,null,null,null,null,null,0,0,0,1,0,0,0,0,0,0,0,0,null,null,null,null,null,null,null,null,null,null,null,null,null,null,0]
[46,"東京航空局","一般競争","福島空港ＶＯＲ／ＤＭＥ局舎空気調和設備工事","福島県","福島県石川郡玉川村\n福島VOR/DME","2020-12-01","2021-03-01",4,"","管工事","空気調和設備の更新工事\n空冷式パッケージ形空気調和機　２台\n空気調和装置動力制御盤　1面　","第3四半期","第3四半期",null,null,null,"機械課",null,null,null,null,null,null,null,null,0,0,0,0,0,0,0,0,0,1,0,0,null,0,0,0,0,0,null,0,0,null,null,null,null,null,0,0,0,1,0,0,0,0,0,0,0,0,null,null,null,null,null,null,null,null,null,null,null,null,null,null,0]
[47,"東京航空局","一般競争","上品山ＡＲＳＲ局舎外２か所空気調和設備工事","宮城県","宮城県石巻市\n上品山SSR","2020-10-01","2021-03-01",6,"","管工事","空気調和設備の更新工事\n空冷式パッケージ形空気調和機　８台\n空気調和装置動力制御盤　４面　他","第3四半期","第2四半期",null,null,null,"機械課",null,null,null,null,null,null,null,null,0,0,0,0,0,0,1,0,0,0,0,0,null,0,0,0,0,0,null,0,0,null,null,null,null,null,0,0,0,1,0,0,0,0,0,0,0,0,null,null,null,null,null,null,null,null,null,null,null,null,null,null,0]
[48,"東京航空局","一般競争","大子ＶＯＲＴＡＣ局舎ＲＣＡＧ機器室空気調和設備工事","茨城県","茨城県久慈郡大子町\n大子VORTAC","2020-11-01","2021-02-01",4,"","管工事","空気調和設備の更新工事\n空冷式パッケージ形空気調和機　２台\n空気調和装置動力制御盤　1面　","第2四半期","第2四半期",null,null,null,"機械課",null,null,null,null,null,null,null,null,0,0,0,0,0,0,0,0,0,0,1,0,null,0,0,0,0,0,null,0,0,null,null,null,null,null,0,0,0,1,0,0,0,0,0,0,0,0,null,null,null,null,null,null,null,null,null,null,null,null,null,null,0]
[49,"東京航空局","一般競争","性能評価センター機械設備工事","茨城県","茨城県常陸太田市\n性能評価センター","2020-12-01","2022-03-01",16,"","管工事","機械設備の更新工事\n冷凍機　４台\nユニット型空調機　１６台　他","第3四半期","第2四半期",null,null,null,"機械課",null,null,null,null,null,null,null,null,0,0,0,0,0,0,0,0,0,0,1,0,null,0,0,0,0,0,null,0,0,null,null,null,null,null,0,0,0,1,0,0,0,0,0,0,0,0,null,null,null,null,null,null,null,null,null,null,null,null,null,null,0]
[{"$f":"A64+1","v":50},"東京航空局","一般競争","東京国際空港運航情報業務用機器移設工事","東京都","東京都大田区\n　東京国際空港","2020-12-01","2021-03-20",{"$f":"IF(S65>0,S65,DATEDIF(G65,H65,\"M\")+1)","v":4},"","電気通信工事","運航情報業務用機器移設工事　1式\n付帯設備設置工事　1式","第3四半期","第3四半期",null,null,null,"運用課",null,null,null,null,null,null,null,null,0,0,0,0,0,0,0,0,0,0,0,0,null,0,0,1,0,0,null,0,0,null,null,null,null,null,0,0,0,0,0,0,0,0,1,0,0,0,null,null,null,null,null,null,null,null,null,null,null,null,null,null,0]
[51,"東京航空局","一般競争","東京国際空港ＡＴＩＳ端末更新工事","東京都","東京都大田区\n　東京国際空港","2020-12-01","2021-03-20",{"$f":"IF(S66>0,S66,DATEDIF(G66,H66,\"M\")+1)","v":4},"","電気通信工事","ATIS端末設置工事　1式\nATIS端末撤去工事　1式\n付帯設備設置工事　1式","第3四半期","第3四半期",null,null,null,"運用課",null,null,null,null,null,null,null,null,0,0,0,0,0,0,0,0,0,0,0,0,null,0,0,1,0,0,null,0,0,null,null,null,null,null,0,0,0,0,0,0,0,0,1,0,0,0,null,null,null,null,null,null,null,null,null,null,null,null,null,null,0]
[52,"東京航空局","一般競争","稚内空港他２空港運航援助業務機器移設その他工事","北海道","北海道稚内市\n　稚内空港\n北海道釧路市\n　釧路空港\n北海道函館市\n　函館空港","2020-12-01","2021-03-20",{"$f":"IF(S67>0,S67,DATEDIF(G67,H67,\"M\")+1)","v":4},"","電気通信工事","運航情報業務用機器移設工事　1式\n運航情報業務用機器撤去工事　1式\n付帯設備設置工事　1式","第3四半期","第3四半期",null,null,null,"運用課",null,null,null,null,null,null,null,null,1,0,1,1,0,0,0,0,0,0,0,0,null,0,0,0,0,0,null,0,0,null,null,null,null,null,0,0,0,0,0,0,0,0,1,0,0,0,null,null,null,null,null,null,null,null,null,null,null,null,null,null,0]
[53,"東京航空局","一般競争","新潟空港滑走路面監視装置更新工事","新潟県","新潟県新潟市\n　新潟空港","2020-08-01","2020-12-01",{"$f":"IF(S68>0,S68,DATEDIF(G68,H68,\"M\")+1)","v":5},"","電気通信工事","滑走路面監視装置更新工事　1式","第2四半期","第2四半期",null,null,null,"運用課",null,null,null,null,null,null,null,null,0,0,0,0,0,0,0,0,0,0,0,0,null,0,0,0,0,0,null,1,0,null,null,null,null,null,0,0,0,0,0,0,0,0,1,0,0,0,null,null,null,null,null,null,null,null,null,null,null,null,null,null,0]
[54,"東京航空局","一般競争","秋田空港他４空港運航援助支援業務機器撤去その他工事","秋田県\n青森県\n北海道","秋田県\n　秋田空港\n青森県\n　青森空港\n北海道旭川市\n　旭川空港\n北海道帯広市\n　帯広空港\n北海道網走郡大空町\n　女満別空港","2020-08-01","2020-12-01",5,"","電気通信工事","運航情報業務用機器撤去工事　1式\n付帯設備設置工事　1式","第2四半期","第2四半期",null,null,null,"運用課",null,null,null,null,null,null,null,null,1,0,2,0,1,0,0,1,0,0,0,0,null,0,0,0,0,0,null,0,0,null,null,null,null,null,0,0,0,0,0,0,0,0,1,0,0,0,null,null,null,null,null,null,null,null,null,null,null,null,null,null,0]
[55,"東京航空局","一般競争","新島空港外１空港ＲＡＧ空港用ＩＴＶ装置更新工事","東京都","東京都大田区\n　東京国際空港\n東京都新島村\n　新島空港\n東京都神津島村\n　神津島空港","2020-09-01","2021-01-01",5,"","電気通信工事","RAG-ITV機器設置工事　1式\n付帯設備設置工事　1式","第2四半期","第2四半期",null,null,null,"管技課",null,null,null,null,null,null,null,null,0,0,0,0,0,0,0,0,0,0,0,0,null,0,0,1,0,0,null,0,0,null,null,null,null,null,0,0,0,0,0,0,0,0,1,0,0,0,null,null,null,null,null,null,null,null,null,null,null,null,null,null,0]
[56,"東京航空局","一般競争","東京国際空港第１ＡＳＤＥ更新工事","東京都","東京都大田区\n東京国際空港","2020-07-01","2021-03-01",9,"","電気通信工事","ASDE更新工事1式","第2四半期","第1四半期",null,null,null,"管技課",null,null,null,null,null,null,null,null,0,0,0,0,0,0,0,0,0,0,0,0,null,0,0,1,0,0,null,0,0,null,null,null,null,null,0,0,0,0,0,0,0,0,1,0,0,0,null,null,null,null,null,null,null,null,null,null,null,null,null,null,0]
[{"$f":"A71+1","v":57},"東京航空局","一般競争","東京国際空港旧管制塔設備更新工事","東京都","東京都大田区\n東京国際空港","2020-08-01","2021-03-01",8,"","電気通信工事","管制塔設備更新工事1式\n付帯設備設置工事1式","第2四半期","第2四半期",null,null,null,"管技課",null,null,null,null,null,null,null,null,0,0,0,0,0,0,0,0,0,0,0,0,null,0,0,1,0,0,null,0,0,null,null,null,null,null,0,0,0,0,0,0,0,0,1,0,0,0,null,null,null,null,null,null,null,null,null,null,null,null,null,null,0]
[58,"東京航空局","一般競争","青森空港管制塔設備移設その他工事","青森県","青森県青森市\n青森空港","2020-10-01","2021-03-01",6,"","電気通信工事","管制塔設備移設工事1式\n付帯設備設置工事1式","第3四半期","第2四半期",null,null,null,"管技課",null,null,null,null,null,null,null,null,0,0,0,0,1,0,0,0,0,0,0,0,null,0,0,0,0,0,null,0,0,null,null,null,null,null,0,0,0,0,0,0,0,0,1,0,0,0,null,null,null,null,null,null,null,null,null,null,null,null,null,null,0]
[59,"東京航空局","一般競争","釧路空港ＩＬＳ更新その他工事","北海道","北海道釧路市\n釧路空港","2020-12-01","2022-03-01",16,"","電気通信工事","ILS更新工事1式\n仮設LOC撤去工事1式","第4四半期","第3四半期",null,null,null,"管技課",null,null,null,null,null,null,null,null,1,0,0,0,0,0,0,0,0,0,0,0,null,0,0,0,0,0,null,0,0,null,null,null,null,null,0,0,0,0,0,0,0,0,1,0,0,0,null,null,null,null,null,null,null,null,null,null,null,null,null,null,0]
[60,"東京航空局","一般競争","函館空港ＴＳＲ更新工事","北海道","北海道函館市\n函館空港","2020-08-01","2021-03-01",8,"","電気通信工事","TSR更新工事1式","第2四半期","第2四半期",null,null,null,"管技課",null,null,null,null,null,null,null,null,0,0,0,1,0,0,0,0,0,0,0,0,null,0,0,0,0,0,null,0,0,null,null,null,null,null,0,0,0,0,0,0,0,0,1,0,0,0,null,null,null,null,null,null,null,null,null,null,null,null,null,null,0]
[{"$f":"A75+1","v":61},"東京航空局","一般競争","成田国際空港第１ＴＳＲ更新工事","千葉県","千葉県成田市\n成田国際空港","2020-08-01","2021-03-01",8,"","電気通信工事","TSR更新工事1式","第2四半期","第2四半期",null,null,null,"管技課",null,null,null,null,null,null,null,null,0,0,0,0,0,0,0,0,0,0,0,0,null,0,1,0,0,0,null,0,0,null,null,null,null,null,0,0,0,0,0,0,0,0,1,0,0,0,null,null,null,null,null,null,null,null,null,null,null,null,null,null,0]
[{"$f":"A76+1","v":62},"東京航空局","一般競争","坂戸国際対空通信設備更新工事","埼玉県","埼玉県鶴ヶ島市\n坂戸HF","2020-08-01","2021-03-01",8,"","電気通信工事","国際対空更新工事1式\n付帯設備設置工事1式","第2四半期","第2四半期",null,null,null,"管技課",null,null,null,null,null,null,null,null,0,0,0,0,0,0,0,0,0,0,0,0,null,1,0,0,0,0,null,0,0,null,null,null,null,null,0,0,0,0,0,0,0,0,1,0,0,0,null,null,null,null,null,null,null,null,null,null,null,null,null,null,0]
[63,"東京航空局","一般競争","上品山ＳＳＲ更新工事","宮城県","宮城県石巻市\n上品山SSR","2020-08-01","2021-03-01",8,"","電気通信工事","SSR更新工事1式\n付帯設備設置工事1式","第2四半期","第2四半期",null,null,null,"管技課",null,null,null,null,null,null,null,null,0,0,0,0,0,0,1,0,0,0,0,0,null,0,0,0,0,0,null,0,0,null,null,null,null,null,0,0,0,0,0,0,0,0,1,0,0,0,null,null,null,null,null,null,null,null,null,null,null,null,null,null,0]
[64,"東京航空局","一般競争","成田国際対空通信設備更新工事","千葉県","千葉県成田市\n成田国際空港","2020-08-01","2021-03-01",8,"","電気通信工事","国際対空通信設備更新工事1式\n付帯設備設置工事1式","第2四半期","第2四半期",null,null,null,"管技課",null,null,null,null,null,null,null,null,0,0,0,0,0,0,0,0,0,0,0,0,null,0,1,0,0,0,null,0,0,null,null,null,null,null,0,0,0,0,0,0,0,0,1,0,0,0,null,null,null,null,null,null,null,null,null,null,null,null,null,null,0]
[65,"東京航空局","一般競争","新潟空港ＴＳＲ空中線鉄塔補修工事","新潟県","新潟県新潟市\n新潟空港","2020-09-01","2021-03-01",7,"","鋼構造物工事","TSR空中線鉄塔補修工事1式","第2四半期","第2四半期",null,null,null,"管技課",null,null,null,null,null,null,null,null,0,0,0,0,0,0,0,0,0,0,0,0,null,0,0,0,0,0,null,1,0,null,null,null,null,null,0,0,0,0,1,0,0,0,0,0,0,0,null,null,null,null,null,null,null,null,null,null,null,null,null,null,0]
[66,"東京航空局","一般競争","新潟空港統合管制情報処理システム設置その他工事","新潟県","新潟県新潟市\n新潟空港","2020-08-01","2021-02-01",7,"","電気通信工事","統合管制情報処理システム設備設置工事1式\n付帯設備設置工事1式","第2四半期","第2四半期",null,null,null,"管技課",null,null,null,null,null,null,null,null,0,0,0,0,0,0,0,0,0,0,{"$f":"IF(COUNTIF($E81,\"*茨城*\"),1,0)","v":0},0,null,0,0,0,0,0,null,1,0,null,null,null,null,null,0,0,0,0,0,0,0,0,1,0,0,0,null,null,null,null,null,null,null,null,null,null,null,null,null,null,0]
[67,"東京航空局","一般競争","仙台空港統合管制情報処理システム移設その他工事","宮城県","宮城県名取市\n仙台空港","2020-09-01","2021-03-01",7,"","電気通信工事","統合管制情報処理システム設備設置工事1式\n付帯設備設置工事1式","第2四半期","第2四半期",null,null,null,"管技課",null,null,null,null,null,null,null,null,{"$f":"COUNTIF($F82,\"*中標津*\")+COUNTIF($F82,\"*釧路*\")+COUNTIF($F82,\"*帯広*\")","v":0},{"$f":"COUNTIF($F82,\"*丘珠*\")+COUNTIF($F82,\"*新千歳*\")","v":0},{"$f":"COUNTIF($F82,\"*稚内*\")+COUNTIF($F82,\"*礼文*\")+COUNTIF($F82,\"*利尻*\")+COUNTIF($F82,\"*紋別*\")+COUNTIF($F82,\"*女満別*\")+COUNTIF($F82,\"*旭川*\")","v":0},{"$f":"COUNTIF($F82,\"*函館*\")+COUNTIF($F82,\"*奥尻*\")","v":0},{"$f":"IF(COUNTIF($E82,\"*青森*\"),1,0)","v":0},{"$f":"IF(COUNTIF($E82,\"*岩手*\"),1,0)","v":0},{"$f":"IF(COUNTIF($E82,\"*宮城*\"),1,0)","v":1},{"$f":"IF(COUNTIF($E82,\"*秋田*\"),1,0)","v":0},{"$f":"IF(COUNTIF($E82,\"*山形*\"),1,0)","v":0},{"$f":"IF(COUNTIF($E82,\"*福島*\"),1,0)","v":0},0,{"$f":"IF(COUNTIF($E82,\"*栃木*\"),1,0)","v":0},null,{"$f":"IF(COUNTIF($E82,\"*埼玉*\"),1,0)","v":0},{"$f":"IF(COUNTIF($E82,\"*千葉*\"),1,0)","v":0},0,{"$f":"IF(COUNTIF($E82,\"*神奈川*\"),1,0)","v":0},{"$f":"IF(COUNTIF($E82,\"*山梨*\"),1,0)","v":0},null,{"$f":"IF(COUNTIF($E82,\"*新潟*\"),1,0)","v":0},{"$f":"IF(COUNTIF($E82,\"*静岡*\"),1,0)","v":0},null,null,null,null,null,{"$f":"IF(COUNTIF($K82,\"*土木*\"),1,0)","v":0},{"$f":"IF(COUNTIF($K82,\"*建築*\"),1,0)","v":0},{"$f":"IF(COUNTIF($K82,\"*電気工事*\"),1,0)","v":0},{"$f":"IF(COUNTIF($K82,\"*管*\"),1,0)","v":0},{"$f":"IF(COUNTIF($K82,\"*鋼構造物*\"),1,0)","v":0},{"$f":"IF(COUNTIF($K82,\"*ほ装*\"),1,0)","v":0},{"$f":"IF(COUNTIF($K82,\"*塗装*\"),1,0)","v":0},{"$f":"IF(COUNTIF($K82,\"*機械器具*\"),1,0)","v":0},{"$f":"IF(COUNTIF($K82,\"*電気通信*\"),1,0)","v":1},{"$f":"IF(COUNTIF($K82,\"*造園*\"),1,0)","v":0},{"$f":"IF(COUNTIF($K82,\"*水道*\"),1,0)","v":0},{"$f":"IF(COUNTIF($K82,\"*消防*\"),1,0)","v":0},null,null,null,null,null,null,null,null,null,null,null,null,null,null,0]
[68,"東京航空局","一般競争","秋田空港仮設ＬＯＣ設置工事","秋田県","秋田県秋田市\n秋田空港","2021-02-01","2021-05-01",4,"","電気通信工事","仮設LOC設置工事1式","第4四半期","第4四半期",null,null,null,"管技課",null,null,null,null,null,null,null,null,0,0,0,0,0,0,0,1,0,0,0,0,null,0,0,0,0,0,null,0,0,null,null,null,null,null,0,0,0,0,0,0,0,0,1,0,0,0,null,null,null,null,null,null,null,null,null,null,null,null,null,null,0]
[69,"東京航空局","一般競争","秋田仮設ＳＳＲ設置工事","秋田県","秋田県秋田市\n秋田SSR/TX","2020-08-01","2021-01-01",6,"","電気通信工事","仮設SSR設置工事1式","第2四半期","第2四半期",null,null,null,"管技課",null,null,null,null,null,null,null,null,0,0,0,0,0,0,0,1,0,0,0,0,null,0,0,{"$f":"IF(COUNTIF($E84,\"*東京*\"),1,0)","v":0},0,0,null,0,0,null,null,null,null,null,0,0,0,0,0,0,0,0,1,0,0,0,null,null,null,null,null,null,null,null,null,null,null,null,null,null,0]
[70,"東京航空局","一般競争","利尻仮設ＶＯＲ／ＤＭＥ撤去工事","北海道","北海道利尻郡利尻富士町\n利尻VOR/DME","2020-08-01","2020-12-25",5,"","電気通信工事","仮設VOR/DME撤去工事1式","第2四半期","第2四半期",null,null,null,"管技課",null,null,null,null,null,null,null,null,0,0,1,0,0,0,0,0,0,0,0,0,null,0,0,0,0,0,null,0,0,null,null,null,null,null,0,0,0,0,0,0,0,0,1,0,0,0,null,null,null,null,null,null,null,null,null,null,null,null,null,null,0]
[71,"東京航空局","一般競争","利尻空港外２空港ＲＡＧ空港用ＩＴＶ装置更新工事","北海道","北海道千歳市\n　新千歳空港\n北海道利尻郡利尻富士町\n　利尻空港\n北海道奥尻郡奥尻町\n　奥尻空港\n北海道紋別市\n  紋別空港","2020-08-01","2020-12-01",5,"","電気通信工事","RAG-ITV機器設置工事　1式\n付帯設備設置工事　1式","第2四半期","第1四半期",null,null,null,"管技課",null,null,null,null,null,null,null,null,0,1,2,1,0,0,0,0,0,0,0,0,null,0,0,0,0,0,null,0,0,null,null,null,null,null,0,0,0,0,0,0,0,0,1,0,0,0,null,null,null,null,null,null,null,null,null,null,null,null,null,null,0]
[72,"東京航空局","一般競争","成田ＲＣＡＧ更新工事","千葉県","千葉県成田市\n成田国際空港","2020-09-01","2020-12-01",{"$f":"IF(S87>0,S87,DATEDIF(G87,H87,\"M\")+1)","v":3},{"$f":"IF(S87>0,\"※\",\"\")","v":"※"},"電気通信工事","RCAG更新工事1式\n付帯設備設置工事1式","第2四半期","第2四半期",null,null,null,"管技課",3,null,null,null,null,null,null,null,0,0,0,0,0,0,0,0,0,0,0,0,null,0,1,0,0,0,null,0,0,null,null,null,null,null,0,0,0,0,0,0,0,0,1,0,0,0,null,null,null,null,null,null,null,null,null,null,null,null,null,null,0]
[73,"東京航空局","一般競争","守谷ＤＭＥ更新工事","茨城県","茨城県守谷市\n守谷VOR/DME","2020-09-01","2020-12-01",4,"","電気通信工事","DME更新工事1式\n付帯設備設置工事1式","第2四半期","第2四半期",null,null,null,"管技課",null,null,null,null,null,null,null,null,0,0,0,0,0,0,0,0,0,0,1,0,null,0,0,0,0,0,null,0,0,null,null,null,null,null,0,0,0,0,0,0,0,0,1,0,0,0,null,null,null,null,null,null,null,null,null,null,null,null,null,null,0]
[74,"東京航空局","一般競争","千歳ＶＯＲ／ＤＭＥ更新工事","北海道","北海道苫小牧市\n千歳VOR/DME","2020-09-01","2021-03-01",6,"※","電気通信工事","VOR/DME更新工事 1式、付帯設備更新工事　1式\n仮設VOR/DME撤去工事1式","第2四半期","第2四半期",null,null,null,"管技課",6,null,null,null,null,null,null,null,0,0,0,0,0,0,0,0,0,0,0,0,null,0,0,0,0,0,null,0,0,null,null,null,null,null,0,0,0,0,0,0,0,0,1,0,0,0,null,null,null,null,null,null,null,null,null,null,null,null,null,null,0]
[{"$f":"A89+1","v":75},"東京航空局","一般競争","東京国際空港非常用管制塔装置更新その他工事","東京都","東京都大田区\n東京国際空港","2020-11-01","2021-03-01",5,"","電気通信工事","非常用管制塔付帯設備更新工事1式","第3四半期","第3四半期",null,null,null,"管技課",null,null,null,null,null,null,null,null,0,0,0,0,0,0,0,0,0,0,0,0,null,0,0,1,0,0,null,0,0,null,null,null,null,null,0,0,0,0,0,0,0,0,1,0,0,0,null,null,null,null,null,null,null,null,null,null,null,null,null,null,0]
[76,"東京航空局","一般競争","東京国際空港ＳＩＭ移設その他工事","東京都","東京都大田区\n東京国際空港","2020-10-01","2021-03-01",6,"","電気通信工事","SIM移設工事1式\n付帯設備設置工事1式","第3四半期","第2四半期",null,null,null,"管技課",null,null,null,null,null,null,null,null,0,0,0,0,0,0,0,0,0,0,0,0,null,0,0,1,0,0,null,0,0,null,null,null,null,null,0,0,0,0,0,0,0,0,1,0,0,0,null,null,null,null,null,null,null,null,null,null,null,null,null,null,0]
[77,"東京航空局","一般競争","函館空港ＡＴＩＳ業務集約整備工事","東京都\n北海道","東京都大田区\n　東京国際空港\n北海道函館市\n　函館空港","2020-10-01","2021-03-01",6,"","電気通信工事","ATIS業務集約整備工事1式","第3四半期","第2四半期",null,null,null,"管技課",null,null,null,null,null,null,null,null,0,0,0,1,0,0,0,0,0,0,0,0,null,0,0,1,0,0,null,0,0,null,null,null,null,null,0,0,0,0,0,0,0,0,1,0,0,0,null,null,null,null,null,null,null,null,null,null,null,null,null,null,0]
[78,"東京航空局","一般競争","帯広空港仮設ＬＯＣ設置工事","北海道","北海道帯広市\n帯広空港","2021-02-01","2021-05-01",4,"","電気通信工事","仮設LOC設置工事1式","第4四半期","第4四半期",null,null,null,"管技課",null,null,null,null,null,null,null,null,1,0,0,0,0,0,0,0,0,0,0,0,null,0,0,0,0,0,null,0,0,null,null,null,null,null,0,0,0,0,0,0,0,0,1,0,0,0,null,null,null,null,null,null,null,null,null,null,null,null,null,null,0]
[79,"東京航空局","一般競争","女満別空港仮設ＬＯＣ設置工事","北海道","北海道網走郡大空町\n女満別空港","2021-02-01","2021-05-01",4,"","電気通信工事","仮設LOC設置工事1式","第4四半期","第4四半期",null,null,null,"管技課",null,null,null,null,null,null,null,null,0,0,1,0,0,0,0,0,0,0,0,0,null,0,0,0,0,0,null,0,0,null,null,null,null,null,0,0,0,0,0,0,0,0,1,0,0,0,null,null,null,null,null,null,null,null,null,null,null,null,null,null,0]
[80,"東京航空局","一般競争","旭川空港仮設ＳＳＲ設置工事","北海道","北海道上川郡東神楽町\n旭川SSR","2021-03-01","2021-07-01",5,"","電気通信工事","仮設SSR設置工事1式","第4四半期","第4四半期",null,null,null,"管技課",null,null,null,null,null,null,null,null,0,0,1,0,0,0,0,0,0,0,0,0,null,0,0,0,0,0,null,0,0,null,null,null,null,null,0,0,0,0,0,0,0,0,1,0,0,0,null,null,null,null,null,null,null,null,null,null,null,null,null,null,0]
[81,"東京航空局","一般競争","東京国際空港第２ＴＳＲ更新工事","東京都","東京都大田区\n東京国際空港","2021-04-01","2022-03-01",12,"","電気通信工事","TSR更新工事1式\n付帯設備更新工事1式","第4四半期","第4四半期",null,null,null,"管技課",null,null,null,null,null,null,null,null,0,0,0,0,0,0,0,0,0,0,0,0,null,0,0,1,0,0,null,0,0,null,null,null,null,null,0,0,0,0,0,0,0,0,1,0,0,0,null,null,null,null,null,null,null,null,null,null,null,null,null,null,0]
[82,"東京航空局","一般競争","函館空港ＴＡＰＳ－ＳＩＭ更新その他工事","北海道","北海道函館市\n函館空港","2020-11-01","2021-03-01",5,"","電気通信工事","TAPS-SIM設置工事1式","第3四半期","第3四半期",null,null,null,"管技課",null,null,null,null,null,null,null,null,0,0,0,1,0,0,0,0,0,0,0,0,null,0,0,0,0,0,null,0,0,null,null,null,null,null,0,0,0,0,0,0,0,0,1,0,0,0,null,null,null,null,null,null,null,null,null,null,null,null,null,null,0]
[{"$f":"A97+1","v":83},"東京航空局","一般競争","東京国際空港構内道路（ランプ橋部）道路照明灯設置工事","東京都","東京都大田区\n東京国際空港","2020-09-01","2021-03-01",7,"","電気工事","街路灯　１式\nケーブル　１式","第2四半期","第2四半期",null,null,null,"灯電課",null,null,null,null,null,null,null,null,0,0,0,0,0,0,0,0,0,0,0,0,null,0,0,1,0,0,null,0,0,null,null,null,null,null,0,0,1,0,0,0,0,0,0,0,0,0,null,null,null,null,null,null,null,null,null,null,null,null,null,null,0]
[84,"東京航空局","一般競争","東京国際空港Ｂ滑走路論理制御装置設置工事","東京都","東京都大田区\n東京国際空港","2020-08-01","2021-03-01",8,"","電気工事","監視装置　１式\nケーブル　１式","第2四半期","第2四半期",null,null,null,"灯電課",null,null,null,null,null,null,null,null,0,0,0,0,0,0,0,0,0,0,0,0,null,0,0,1,0,0,null,0,0,null,null,null,null,null,0,0,1,0,0,0,0,0,0,0,0,0,null,null,null,null,null,null,null,null,null,null,null,null,null,null,0]
[{"$f":"A99+1","v":85},"東京航空局","一般競争","新千歳空港地下道照明灯改良その他工事","北海道","北海道千歳市\n新千歳空港","2020-09-01","2021-01-01",5,"","電気工事","道路照明灯　１式\nケーブル　１式","第2四半期","第2四半期",null,null,null,"灯電課",null,null,null,null,null,null,null,null,0,1,0,0,0,0,0,0,0,0,0,0,null,0,0,0,0,0,null,0,0,null,null,null,null,null,0,0,1,0,0,0,0,0,0,0,0,0,null,null,null,null,null,null,null,null,null,null,null,null,null,null,0]
[{"$f":"A100+1","v":86},"東京航空局","一般競争","三沢空港航空灯火施設維持工事","青森県","青森県三沢市\n三沢空港","2020-12-01","2024-03-01",40,"","電気工事","航空灯火施設　一式\n電気施設　一式","第3四半期","第3四半期",null,null,null,"灯電課",null,null,null,null,null,null,null,null,0,0,0,0,1,0,0,0,0,0,0,0,null,0,0,0,0,0,null,0,0,null,null,null,null,null,0,0,1,0,0,0,0,0,0,0,0,0,null,null,null,null,null,null,null,null,null,null,null,null,null,null,0]
[87,"東京航空局","一般競争","新潟空港航空灯火施設維持工事","新潟県","新潟県新潟市\n新潟空港","2020-12-01","2024-03-01",40,"","電気工事","航空灯火施設　一式\n電気施設　一式","第3四半期","第3四半期",null,null,null,"灯電課",null,null,null,null,null,null,null,null,0,0,0,0,0,0,0,0,0,0,0,0,null,0,0,0,0,0,null,1,0,null,null,null,null,null,0,0,1,0,0,0,0,0,0,0,0,0,null,null,null,null,null,null,null,null,null,null,null,null,null,null,0]
[88,"東京航空局","一般競争","稚内空港道路駐車場灯改良その他工事","北海道","北海道稚内市\n稚内空港","2020-09-01","2021-01-01",5,"","電気工事","道路照明灯　一式\nケーブル　一式","第2四半期","第2四半期",null,null,null,"灯電課",null,null,null,null,null,null,null,null,0,0,1,0,0,0,0,0,0,0,0,0,null,0,0,0,0,0,null,0,0,null,null,null,null,null,0,0,1,0,0,0,0,0,0,0,0,0,null,null,null,null,null,null,null,null,null,null,null,null,null,null,0]
[89,"東京航空局","一般競争","釧路空港滑走路中心線灯改良その他工事","北海道","北海道釧路市\n釧路空港","2020-08-01","2021-01-01",6,"","電気工事","滑走路灯火　一式\n誘導路灯火　一式\nケーブル　一式","第2四半期","第1四半期",null,null,null,"灯電課",null,null,null,null,null,null,null,null,1,0,0,0,0,0,0,0,0,0,0,0,null,0,0,0,0,0,null,0,0,null,null,null,null,null,0,0,1,0,0,0,0,0,0,0,0,0,null,null,null,null,null,null,null,null,null,null,null,null,null,null,0]
[90,"東京航空局","一般競争","東京航空交通管制部瞬時電圧低下補償装置設置その他工事","埼玉県","埼玉県所沢市\n東京航空交通管制部","2020-09-01","2021-01-01",5,"","電気工事","瞬時電圧低下補償装置　一式\nケーブル　一式","第2四半期","第2四半期",null,null,null,"灯電課",null,null,null,null,null,null,null,null,0,0,0,0,0,0,0,0,0,0,0,0,null,1,0,0,0,0,null,0,0,null,null,null,null,null,0,0,1,0,0,0,0,0,0,0,0,0,null,null,null,null,null,null,null,null,null,null,null,null,null,null,0]
[91,"東京航空局","一般競争","東京航空局サーバー室改修工事","東京都","東京都千代田区\n九段第二合同庁舎","2020-10-01","2020-12-01",3,"","電気通信工事","・電子錠、監視カメラ、ガス系消火設備　新設\n・機器収容ラック８架　移設\n・その他付帯工事、電源、通信、光ケーブル敷設等","第2四半期","第2四半期",null,null,null,"灯電課",null,null,null,null,null,null,null,null,0,0,0,0,0,0,0,0,0,0,0,0,null,0,0,1,0,0,null,0,0,null,null,null,null,null,0,0,0,0,0,0,0,0,1,0,0,0,null,null,null,null,null,null,null,null,null,null,null,null,null,null,0]
[92,"東京航空局","一般競争","新千歳空港停止線灯監視制御装置改良その他工事","北海道","北海道千歳市\n新千歳空港","2020-09-01","2021-03-01",7,{"$f":"IF(S107>0,\"※\",\"\")","v":""},"電気工事","停止線灯監視制御装置　１式\n進入角指示灯監視制御装置　1式\nケーブル　１式","第2四半期","第2四半期",null,null,null,"灯電課",null,null,null,null,null,null,null,null,0,1,0,0,0,0,0,0,0,0,0,0,null,0,0,0,0,0,null,0,0,null,null,null,null,null,0,0,1,0,0,0,0,0,0,0,0,0,null,null,null,null,null,null,null,null,null,null,null,null,null,null,0]
[93,"東京航空局","一般競争","東京国際空港Ｃ滑走路進入角指示灯設置その他工事","東京都","東京都大田区","2020-08-01","2021-04-01",9,{"$f":"IF(S108>0,\"※\",\"\")","v":""},"電気工事","進入角指示灯　１式\n進入角指示灯監視制御装置　1式\nケーブル　１式","第2四半期","第2四半期",null,null,null,"灯電課",null,null,null,null,null,null,null,null,0,0,0,0,0,0,0,0,0,0,0,0,null,0,0,1,0,0,null,0,0,null,null,null,null,null,0,0,1,0,0,0,0,0,0,0,0,0,null,null,null,null,null,null,null,null,null,null,null,null,null,null,0]
[94,"東京航空局","一般競争","東京国際空港Ａ滑走路中心線灯改良その他工事　その２","東京都","東京都大田区","2020-09-01","2021-03-01",7,"","電気工事","滑走路灯火　１式\n誘導路灯火　1式\nケーブル　１式","第2四半期","第2四半期",null,null,null,"灯電課",null,null,null,null,null,null,null,null,0,0,0,0,0,0,0,0,0,0,0,0,null,0,0,1,0,0,null,0,0,null,null,null,null,null,0,0,1,0,0,0,0,0,0,0,0,0,null,null,null,null,null,null,null,null,null,null,null,null,null,null,0]
[95,"東京航空局","一般競争","百里空港航空灯火施設維持工事","茨城県","茨城県小美玉市\n百里空港","2020-12-01","2024-03-01",40,"","電気工事","航空灯火施設　一式\n電気施設　一式","第3四半期","第3四半期",null,null,null,"灯電課",null,null,null,null,null,null,null,null,0,0,0,0,0,0,0,0,0,0,1,0,null,0,0,0,0,0,null,0,0,null,null,null,null,null,0,0,1,0,0,0,0,0,0,0,0,0,null,null,null,null,null,null,null,null,null,null,null,null,null,null,0]
[96,"東京航空局","一般競争","東京国際空港場周警備設備（新貴賓室）設置工事他１件工事","東京都","東京都大田区\n東京国際空港","2020-10-01","2021-03-01",6,"","電気通信工事","・場周警備設備（新貴賓室）　一式\n・場周警備設備（ｴﾝｼﾞﾝﾃｽﾄｾﾙ地区）　一式\n・配管及び電源、通信、光ケーブル等","第2四半期","第2四半期",null,null,null,"安対課",null,null,null,null,null,null,null,null,0,0,0,0,0,0,0,0,0,0,0,0,null,0,0,1,0,0,null,0,0,null,null,null,null,null,0,0,0,0,0,0,0,0,1,0,0,0,null,null,null,null,null,null,null,null,null,null,null,null,null,null,0]
[97,"東京航空局","一般競争","函館空港保安防災関連ケーブル切換工事他１件工事","北海道","北海道函館市\n函館空港","2020-08-01","2021-02-01",7,"","電気通信工事","・配管及び電源、通信、光ケーブル等","第2四半期","第2四半期",null,null,null,"安対課",null,null,null,null,null,null,null,null,0,0,0,1,0,0,0,0,0,0,0,0,null,0,0,0,0,0,null,0,0,null,null,null,null,null,0,0,0,0,0,0,0,0,1,0,0,0,null,null,null,null,null,null,null,null,null,null,null,null,null,null,0]
[98,"東京航空局","一般競争","東京国際空港防災通信指令装置更新工事","東京都","東京都大田区\n東京国際空港","2020-12-01","2021-03-01",4,"","電気通信工事","・防災通信指令装置　一式\n・配管及び電源、通信、光ケーブル等","第3四半期","第3四半期",null,null,null,"安対課",null,null,null,null,null,null,null,null,0,0,0,0,0,0,0,0,0,0,0,0,null,0,0,1,0,0,null,0,0,null,null,null,null,null,0,0,0,0,0,0,0,0,1,0,0,0,null,null,null,null,null,null,null,null,null,null,null,null,null,null,0]
[99,"東京航空局","一般競争","東京国際空港海上警備設備更新工事","東京都","東京都大田区\n東京国際空港","2020-08-01","2021-03-01",8,"","電気通信工事","・海上警備設備一式\n・配管及び電源、通信、光ケーブル等","第2四半期","第2四半期",null,null,null,"安対課",null,null,null,null,null,null,null,null,0,0,0,0,0,0,0,0,0,0,0,0,null,0,0,1,0,0,null,0,0,null,null,null,null,null,0,0,0,0,0,0,0,0,1,0,0,0,null,null,null,null,null,null,null,null,null,null,null,null,null,null,0]
[100,"東京航空局","一般競争","新潟空港保安防災総合運用装置設置工事","新潟県","新潟県新潟市\n新潟空港","2020-12-01","2021-03-01",4,"","電気通信工事","・保安防災総合運用装置　一式\n・配管及び電源、通信、光ケーブル等","第3四半期","第3四半期",null,null,null,"安対課",null,null,null,null,null,null,null,null,0,0,0,0,0,0,0,0,0,0,0,0,null,0,0,0,0,0,null,1,0,null,null,null,null,null,0,0,0,0,0,0,0,0,1,0,0,0,null,null,null,null,null,null,null,null,null,null,null,null,null,null,0]
[101,"東京航空局","一般競争","東京国際空港新貴賓室電話回線敷設工事","東京都","東京都大田区\n東京国際空港","2020-07-01","2020-09-01",3,"","電気通信工事","電話回線敷設工事","第2四半期","第1四半期",null,null,null,"総務課",null,null,null,null,null,null,null,null,0,0,0,0,0,0,0,0,0,0,0,0,null,0,0,1,0,0,null,0,0,null,null,null,null,null,0,0,0,0,0,0,0,0,1,0,0,0,null,null,null,null,null,null,null,null,null,null,null,null,null,null,0]
[102,"新千歳空港事務所","一般競争","釧路ＲＣＡＧ更新工事","北海道","北海道川上郡標茶町\n釧路RCAG","2020-08-01","2020-12-01",5,"","電気通信工事","RCAG更新工事　1式\n付帯設備設置工事　1式","第2四半期","第2四半期",null,null,null,"新千歳（事）",null,null,null,null,null,null,null,null,1,0,0,0,0,0,0,0,0,0,0,0,null,0,0,0,0,0,null,0,0,null,null,null,null,null,0,0,0,0,0,0,0,0,1,0,0,0,null,null,null,null,null,null,null,null,null,null,null,null,null,null,0]
[103,"新千歳空港事務所","一般競争","中標津空港ＲＡＧ更新工事","北海道","北海道標津郡中標津町\n中標津空港","2020-08-01","2020-12-01",4,"※","電気通信工事","RAG更新工事　1式\n付帯設備設置工事　1式","第2四半期","第2四半期",null,null,null,"新千歳（事）",4,null,null,null,null,null,null,null,1,0,0,0,0,0,0,0,0,0,0,0,null,0,0,0,0,0,null,0,0,null,null,null,null,null,0,0,0,0,0,0,0,0,1,0,0,0,null,null,null,null,null,null,null,null,null,null,null,null,null,null,0]
[104,"新千歳空港事務所","一般競争","新千歳空港ケーブル切り回しその他工事(仮称)","北海道","北海道千歳市\n新千歳空港","2020-09-01","2021-03-01",7,"","電気通信工事","ケーブル　1式","第2四半期","第2四半期",null,null,null,"新千歳（事）",null,null,null,null,null,null,null,null,0,1,0,0,0,0,0,0,0,0,0,0,null,0,0,0,0,0,null,0,0,null,null,null,null,null,0,0,0,0,0,0,0,0,1,0,0,0,null,null,null,null,null,null,null,null,null,null,null,null,null,null,0]
[105,"旭川空港出張所","一般競争","旭川空港ＤＲＥＣ更新工事","北海道","北海道上川郡東神楽町\n旭川空港出張所","2020-08-01","2021-01-01",{"$f":"IF(S120>0,S120,DATEDIF(G120,H120,\"M\")+1)","v":6},null,"電気通信工事","DREC機器設置工事　1式\n付帯設備設置工事　1式\n機器撤去工事　1式","第2四半期","第2四半期",null,null,null,"新千歳（事）",null,null,null,null,null,null,null,null,0,0,1,0,0,0,0,0,0,0,0,0,null,0,0,0,0,0,null,0,0,null,null,null,null,null,0,0,0,0,0,0,0,0,1,0,0,0,null,null,null,null,null,null,null,null,null,null,null,null,null,null,0]
[{"$f":"A120+1","v":106},"新潟空港事務所","一般競争","新潟空港対空通信設備更新工事","新潟県","新潟県新潟市\n新潟空港","2020-09-01","2021-03-01",7,"","電気通信工事","ＡＧ機器設置工事　1式","第2四半期","第2四半期",null,null,null,"新潟（事）",null,null,null,null,null,null,null,null,0,0,0,0,0,0,0,0,0,0,0,0,null,0,0,0,0,0,null,1,0,null,null,null,null,null,0,0,0,0,0,0,0,0,1,0,0,0,null,null,null,null,null,null,null,null,null,null,null,null,null,null,0]
[107,"新潟空港事務所","一般競争","新潟空港ＴＡＰＳ－ＳＩＭ設置工事","新潟県","新潟県新潟市\n新潟空港","2020-10-01","2021-03-01",6,"","電気通信工事","TAPS-SIM設置","第2四半期","第2四半期",null,null,null,"新潟（事）",null,null,null,null,null,null,null,null,0,0,0,0,0,0,0,0,0,0,0,0,null,0,0,0,0,0,null,1,0,null,null,null,null,null,0,0,0,0,0,0,0,0,1,0,0,0,null,null,null,null,null,null,null,null,null,null,null,null,null,null,0]
[108,"仙台空港事務所","一般競争","仙台ＲＣＡＧ更新その他工事","宮城県","宮城県名取市\n仙台空港","2020-09-01","2021-03-01",7,"","電気通信工事","RCAG更新工事1式\n付帯設備設置工事1式\nA/G更新工事1式\nTAPS-SIM設置工事1式\n機器撤去工事1式","第2四半期","第2四半期",null,null,null,"仙台（事）",null,null,null,null,null,null,null,null,0,0,0,0,0,0,1,0,0,0,0,0,null,0,0,0,0,0,null,0,0,null,null,null,null,null,0,0,0,0,0,0,0,0,1,0,0,0,null,null,null,null,null,null,null,null,null,null,null,null,null,null,0]
[109,"仙台空港事務所","一般競争","福島空港出張所庁舎屋上房水改修工事","福島県","福島県石川郡玉川村\n福島空港","2020-10-01","2021-02-01",5,"","建築工事","経年劣化に伴う押さえコンクリート表面剥離改修","第3四半期","第3四半期",null,null,null,"仙台（事）",null,null,null,null,null,null,null,null,0,0,0,0,0,0,0,0,0,1,0,0,null,0,0,0,0,0,null,0,0,null,null,null,null,null,0,1,0,0,0,0,0,0,0,0,0,0,null,null,null,null,null,null,null,null,null,null,null,null,null,null,0]
[110,"東京空港事務所","一般競争","糀谷宿舎外壁改修工事","東京都","東京都大田区","2020-08-01","2021-03-01",8,"","建築工事","経年劣化よる外壁改修","第2四半期","第2四半期",null,null,null,"東京（事）",null,null,null,null,null,null,null,null,0,0,0,0,0,0,0,0,0,0,0,0,null,0,0,1,0,0,null,0,0,null,null,null,null,null,0,1,0,0,0,0,0,0,0,0,0,0,null,null,null,null,null,null,null,null,null,null,null,null,null,null,0]
[111,"東京空港事務所","一般競争","雄山ケーブルダクト改修その他工事","東京都","東京都三宅島","2020-10-01","2020-12-01",{"$f":"IF(S126>0,S126,DATEDIF(G126,H126,\"M\")+1)","v":3},{"$f":"IF(S126>0,\"※\",\"\")","v":""},"電気通信工事","経年劣化による屋外ケーブルダクトの改修","第3四半期","第2四半期",null,null,null,"東京（事）",null,null,null,null,null,null,null,null,0,0,0,0,0,0,0,0,0,0,0,0,null,0,0,1,0,0,null,0,0,null,null,null,null,null,0,0,0,0,0,0,0,0,1,0,0,0,null,null,null,null,null,null,null,null,null,null,null,null,null,null,0]
[112,"東京空港事務所","一般競争","新島ＲＡＧ用空中線柱交換その他工事","東京都","東京都新島","2020-10-01","2021-03-01",6,"","電気通信工事","損傷による空中線柱更新　2式\nITVカメラ設置　　　　 　1式","第3四半期","第2四半期",null,null,null,"東京（事）",null,null,null,null,null,null,null,null,0,0,0,0,0,0,0,0,0,0,0,0,null,0,0,1,0,0,null,0,0,null,null,null,null,null,0,0,0,0,0,0,0,0,1,0,0,0,null,null,null,null,null,null,null,null,null,null,null,null,null,null,0]
[113,"東京空港事務所","一般競争","友部ＩＴＶ更新その他工事","東京都","茨城県笠間市","2020-10-01","2021-03-01",6,"","電気通信工事","ITVカメラ設置工事　1式\n付帯設備設置工事　1式","第3四半期","第2四半期",null,null,null,"東京（事）",null,null,null,null,null,null,null,null,0,0,0,0,0,0,0,0,0,0,0,0,null,0,0,1,0,0,null,0,0,null,null,null,null,null,0,0,0,0,0,0,0,0,1,0,0,0,null,null,null,null,null,null,null,null,null,null,null,null,null,null,0]
[114,"東京空港事務所","一般競争","大子ＲＣＡＧ更新工事","茨城県","茨城県久慈郡大子町\n大子VORTAC","2020-08-01","2020-12-01",5,"","電気通信工事","RCAG更新工事1式\n付帯設備設置工事1式","第2四半期","第2四半期",null,null,null,"東京（事）",null,null,null,null,null,null,null,null,0,0,0,0,0,0,0,0,0,0,1,0,null,0,0,0,0,0,null,0,0,null,null,null,null,null,0,0,0,0,0,0,0,0,1,0,0,0,null,null,null,null,null,null,null,null,null,null,null,null,null,null,0]
[115,"東京空港事務所","一般競争","東京国際空港３４Ｒ－ＩＭシェルタ移設工事","東京都","東京都大田区\n東京国際空港","2020-11-01","2020-03-01",5,null,"電気通信工事","IM移設工事1式\n付帯設備設置・移設工事1式","第3四半期","第3四半期",null,null,null,"東京（事）",null,null,null,null,null,null,null,null,0,0,0,0,0,0,0,0,0,0,0,0,null,0,0,1,0,0,null,0,0,null,null,null,null,null,0,0,0,0,0,0,0,0,1,0,0,0,null,null,null,null,null,null,null,null,null,null,null,null,null,null,0]
[116,null,null,null,null,null,null,null,{"$f":"IF(S131>0,S131,DATEDIF(G131,H131,\"M\")+1)","v":1},{"$f":"IF(S131>0,\"※\",\"\")","v":""},null,null,null,null,null,1,null,null,null,null,null,null,null,null,null,null,0,0,0,0,0,0,0,0,0,0,0,0,null,0,0,0,0,0,null,0,0,null,null,null,null,null,0,0,0,0,0,0,0,0,0,0,0,0,null,null,null,null,null,null,null,null,null,null,null,null,null,null,0]
[117,null,null,null,null,null,null,null,1,"",null,null,null,null,null,1,null,null,null,null,null,null,null,null,null,null,0,0,0,0,0,0,0,0,0,0,0,0,null,0,0,0,0,0,null,0,0,null,null,null,null,null,0,0,0,0,0,0,0,0,0,0,0,0,null,null,null,null,null,null,null,null,null,null,null,null,null,null,0]
[118,null,null,null,null,null,null,null,1,"",null,null,null,null,null,1,null,null,null,null,null,null,null,null,null,null,0,0,0,0,0,0,0,0,0,0,0,0,null,0,0,0,0,0,null,0,0,null,null,null,null,null,0,0,0,0,0,0,0,0,0,0,0,0,null,null,null,null,null,null,null,null,null,null,null,null,null,null,0]
[119,null,null,null,null,null,null,null,1,"",null,null,null,null,null,1,null,null,null,null,null,null,null,null,null,null,0,0,0,0,0,0,0,0,0,0,0,0,null,0,0,0,0,0,null,0,0,null,null,null,null,null,0,0,0,0,0,0,0,0,0,0,0,0,null,null,null,null,null,null,null,null,null,null,null,null,null,null,0]
[120,null,null,null,null,null,null,null,1,"",null,null,null,null,null,1,null,null,null,null,null,null,null,null,null,null,0,0,0,0,0,0,0,0,0,0,0,0,null,0,0,0,0,0,null,0,0,null,null,null,null,null,0,0,0,0,0,0,0,0,0,0,0,0,null,null,null,null,null,null,null,null,null,null,null,null,null,null,0]
[121,null,null,null,null,null,null,null,1,"",null,null,null,null,null,1,null,null,null,null,null,null,null,null,null,null,0,0,0,0,0,0,0,0,0,0,0,0,null,0,0,0,0,0,null,0,0,null,null,null,null,null,0,0,0,0,0,0,0,0,0,0,0,0,null,null,null,null,null,null,null,null,null,null,null,null,null,null,0]
[122,null,null,null,null,null,null,null,1,"",null,null,null,null,null,1,null,null,null,null,null,null,null,null,null,null,0,0,0,0,0,0,0,0,0,0,0,0,null,0,0,0,0,0,null,0,0,null,null,null,null,null,0,0,0,0,0,0,0,0,0,0,0,0,null,null,null,null,null,null,null,null,null,null,null,null,null,null,0]
[123,null,null,null,null,null,null,null,1,"",null,null,null,null,null,1,null,null,null,null,null,null,null,null,null,null,0,0,0,0,0,0,0,0,0,0,0,0,null,0,0,0,0,0,null,0,0,null,null,null,null,null,0,0,0,0,0,0,0,0,0,0,0,0,null,null,null,null,null,null,null,null,null,null,null,null,null,null,0]
[124,null,null,null,null,null,null,null,1,"",null,null,null,null,null,1,null,null,null,null,null,null,null,null,null,null,0,0,0,0,0,0,0,0,0,0,0,0,null,0,0,0,0,0,null,0,0,null,null,null,null,null,0,0,0,0,0,0,0,0,0,0,0,0,null,null,null,null,null,null,null,null,null,null,null,null,null,null,0]
[125,null,null,null,null,null,null,null,1,"",null,null,null,null,null,1,null,null,null,null,null,null,null,null,null,null,0,0,0,0,0,0,0,0,0,0,0,0,null,0,0,0,0,0,null,0,0,null,null,null,null,null,0,0,0,0,0,0,0,0,0,0,0,0,null,null,null,null,null,null,null,null,null,null,null,null,null,null,0]
[{"$f":"A140+1","v":126},null,null,null,null,null,null,null,1,"",null,null,null,null,null,1,null,null,null,null,null,null,null,null,null,null,0,0,0,0,0,0,0,0,0,0,{"$f":"IF(COUNTIF($E141,\"*茨城*\"),1,0)","v":0},0,null,0,0,0,0,0,null,0,0,null,null,null,null,null,0,0,0,0,0,0,0,0,0,0,0,0,null,null,null,null,null,null,null,null,null,null,null,null,null,null,0]
[127,null,null,null,null,null,null,null,1,"",null,null,null,null,null,1,null,null,null,null,null,null,null,null,null,null,0,0,0,0,0,0,0,0,0,0,0,0,null,0,0,0,0,0,null,0,0,null,null,null,null,null,0,0,0,0,0,0,0,0,0,0,0,0,null,null,null,null,null,null,null,null,null,null,null,null,null,null,0]
[128,null,null,null,null,null,null,null,1,"",null,null,null,null,null,1,null,null,null,null,null,null,null,null,null,null,0,0,0,0,0,0,0,0,0,0,0,0,null,0,0,0,0,0,null,0,0,null,null,null,null,null,0,0,0,0,0,0,0,0,0,0,0,0,null,null,null,null,null,null,null,null,null,null,null,null,null,null,0]
[129,null,null,null,null,null,null,null,1,"",null,null,null,null,null,1,null,null,null,null,null,null,null,null,null,null,0,0,0,0,0,0,0,0,0,0,0,0,null,0,0,0,0,0,null,0,0,null,null,null,null,null,0,0,0,0,0,0,0,0,0,0,0,0,null,null,null,null,null,null,null,null,null,null,null,null,null,null,0]
[130,null,null,null,null,null,null,null,1,"",null,null,null,null,null,1,null,null,null,null,null,null,null,null,null,null,0,0,0,0,0,0,0,0,0,0,0,0,null,0,0,0,0,0,null,0,0,null,null,null,null,null,0,0,0,0,0,0,0,0,0,0,0,0,null,null,null,null,null,null,null,null,null,null,null,null,null,null,0]
[131,null,null,null,null,null,null,null,1,"",null,null,null,null,null,1,null,null,null,null,null,null,null,null,null,null,{"$f":"COUNTIF($F146,\"*中標津*\")+COUNTIF($F146,\"*釧路*\")+COUNTIF($F146,\"*帯広*\")","v":0},{"$f":"COUNTIF($F146,\"*丘珠*\")+COUNTIF($F146,\"*新千歳*\")","v":0},{"$f":"COUNTIF($F146,\"*稚内*\")+COUNTIF($F146,\"*礼文*\")+COUNTIF($F146,\"*利尻*\")+COUNTIF($F146,\"*紋別*\")+COUNTIF($F146,\"*女満別*\")+COUNTIF($F146,\"*旭川*\")","v":0},{"$f":"COUNTIF($F146,\"*函館*\")+COUNTIF($F146,\"*奥尻*\")","v":0},{"$f":"IF(COUNTIF($E146,\"*青森*\"),1,0)","v":0},{"$f":"IF(COUNTIF($E146,\"*岩手*\"),1,0)","v":0},{"$f":"IF(COUNTIF($E146,\"*宮城*\"),1,0)","v":0},{"$f":"IF(COUNTIF($E146,\"*秋田*\"),1,0)","v":0},{"$f":"IF(COUNTIF($E146,\"*山形*\"),1,0)","v":0},{"$f":"IF(COUNTIF($E146,\"*福島*\"),1,0)","v":0},0,{"$f":"IF(COUNTIF($E146,\"*栃木*\"),1,0)","v":0},null,{"$f":"IF(COUNTIF($E146,\"*埼玉*\"),1,0)","v":0},{"$f":"IF(COUNTIF($E146,\"*千葉*\"),1,0)","v":0},0,{"$f":"IF(COUNTIF($E146,\"*神奈川*\"),1,0)","v":0},{"$f":"IF(COUNTIF($E146,\"*山梨*\"),1,0)","v":0},null,{"$f":"IF(COUNTIF($E146,\"*新潟*\"),1,0)","v":0},{"$f":"IF(COUNTIF($E146,\"*静岡*\"),1,0)","v":0},null,null,null,null,null,{"$f":"IF(COUNTIF($K146,\"*土木*\"),1,0)","v":0},{"$f":"IF(COUNTIF($K146,\"*建築*\"),1,0)","v":0},{"$f":"IF(COUNTIF($K146,\"*電気工事*\"),1,0)","v":0},{"$f":"IF(COUNTIF($K146,\"*管*\"),1,0)","v":0},{"$f":"IF(COUNTIF($K146,\"*鋼構造物*\"),1,0)","v":0},{"$f":"IF(COUNTIF($K146,\"*ほ装*\"),1,0)","v":0},{"$f":"IF(COUNTIF($K146,\"*塗装*\"),1,0)","v":0},{"$f":"IF(COUNTIF($K146,\"*機械器具*\"),1,0)","v":0},{"$f":"IF(COUNTIF($K146,\"*電気通信*\"),1,0)","v":0},{"$f":"IF(COUNTIF($K146,\"*造園*\"),1,0)","v":0},{"$f":"IF(COUNTIF($K146,\"*水道*\"),1,0)","v":0},{"$f":"IF(COUNTIF($K146,\"*消防*\"),1,0)","v":0},null,null,null,null,null,null,null,null,null,null,null,null,null,null,0]
[132,null,null,null,null,null,null,null,1,"",null,null,null,null,null,1,null,null,null,null,null,null,null,null,null,null,0,0,0,0,0,0,0,0,0,0,0,0,null,0,0,0,0,0,null,0,0,null,null,null,null,null,0,0,0,0,0,0,0,0,0,0,0,0,null,null,null,null,null,null,null,null,null,null,null,null,null,null,0]
[133,null,null,null,null,null,null,null,1,"",null,null,null,null,null,1,null,null,null,null,null,null,null,null,null,null,0,0,0,0,0,0,0,0,0,0,0,0,null,0,0,{"$f":"IF(COUNTIF($E148,\"*東京*\"),1,0)","v":0},0,0,null,0,0,null,null,null,null,null,0,0,0,0,0,0,0,0,0,0,0,0,null,null,null,null,null,null,null,null,null,null,null,null,null,null,0]
[134,null,null,null,null,null,null,null,1,"",null,null,null,null,null,1,null,null,null,null,null,null,null,null,null,null,0,0,0,0,0,0,0,0,0,0,0,0,null,0,0,0,0,0,null,0,0,null,null,null,null,null,0,0,0,0,0,0,0,0,0,0,0,0,null,null,null,null,null,null,null,null,null,null,null,null,null,null,0]
[135,null,null,null,null,null,null,null,1,"",null,null,null,null,null,1,null,null,null,null,null,null,null,null,null,null,0,0,0,0,0,0,0,0,0,0,0,0,null,0,0,0,0,0,null,0,0,null,null,null,null,null,0,0,0,0,0,0,0,0,0,0,0,0,null,null,null,null,null,null,null,null,null,null,null,null,null,null,0]
[136,null,null,null,null,null,null,null,1,"",null,null,null,null,null,1,null,null,null,null,null,null,null,null,null,null,0,0,0,0,0,0,0,0,0,0,0,0,null,0,0,0,0,0,null,0,0,null,null,null,null,null,0,0,0,0,0,0,0,0,0,0,0,0,null,null,null,null,null,null,null,null,null,null,null,null,null,null,0]
[137,null,null,null,null,null,null,null,1,"",null,null,null,null,null,1,null,null,null,null,null,null,null,null,null,null,0,0,0,0,0,0,0,0,0,0,0,0,null,0,0,0,0,0,null,0,0,null,null,null,null,null,0,0,0,0,0,0,0,0,0,0,0,0,null,null,null,null,null,null,null,null,null,null,null,null,null,null,0]
[138,null,null,null,null,null,null,null,1,"",null,null,null,null,null,1,null,null,null,null,null,null,null,null,null,null,0,0,0,0,0,0,0,0,0,0,0,0,null,0,0,0,0,0,null,0,0,null,null,null,null,null,0,0,0,0,0,0,0,0,0,0,0,0,null,null,null,null,null,null,null,null,null,null,null,null,null,null,0]
[139,null,null,null,null,null,null,null,1,"",null,null,null,null,null,1,null,null,null,null,null,null,null,null,null,null,0,0,0,0,0,0,0,0,0,0,0,0,null,0,0,0,0,0,null,0,0,null,null,null,null,null,0,0,0,0,0,0,0,0,0,0,0,0,null,null,null,null,null,null,null,null,null,null,null,null,null,null,0]
[140,null,null,null,null,null,null,null,1,"",null,null,null,null,null,1,null,null,null,null,null,null,null,null,null,null,0,0,0,0,0,0,0,0,0,0,0,0,null,0,0,0,0,0,null,0,0,null,null,null,null,null,0,0,0,0,0,0,0,0,0,0,0,0,null,null,null,null,null,null,null,null,null,null,null,null,null,null,0]
[141,null,null,null,null,null,null,null,1,"",null,null,null,null,null,1,null,null,null,null,null,null,null,null,null,null,0,0,0,0,0,0,0,0,0,0,0,0,null,0,0,0,0,0,null,0,0,null,null,null,null,null,0,0,0,0,0,0,0,0,0,0,0,0,null,null,null,null,null,null,null,null,null,null,null,null,null,null,0]
[142,null,null,null,null,null,null,null,1,"",null,null,null,null,null,1,null,null,null,null,null,null,null,null,null,null,0,0,0,0,0,0,0,0,0,0,0,0,null,0,0,0,0,0,null,0,0,null,null,null,null,null,0,0,0,0,0,0,0,0,0,0,0,0,null,null,null,null,null,null,null,null,null,null,null,null,null,null,0]
[143,null,null,null,null,null,null,null,1,"",null,null,null,null,null,1,null,null,null,null,null,null,null,null,null,null,0,0,0,0,0,0,0,0,0,0,0,0,null,0,0,0,0,0,null,0,0,null,null,null,null,null,0,0,0,0,0,0,0,0,0,0,0,0,null,null,null,null,null,null,null,null,null,null,null,null,null,null,0]
[144,null,null,null,null,null,null,null,1,"",null,null,null,null,null,1,null,null,null,null,null,null,null,null,null,null,0,0,0,0,0,0,0,0,0,0,0,0,null,0,0,0,0,0,null,0,0,null,null,null,null,null,0,0,0,0,0,0,0,0,0,0,0,0,null,null,null,null,null,null,null,null,null,null,null,null,null,null,0]
[145,null,null,null,null,null,null,null,1,"",null,null,null,null,null,1,null,null,null,null,null,null,null,null,null,null,0,0,0,0,0,0,0,0,0,0,0,0,null,0,0,0,0,0,null,0,0,null,null,null,null,null,0,0,0,0,0,0,0,0,0,0,0,0,null,null,null,null,null,null,null,null,null,null,null,null,null,null,0]
[146,null,null,null,null,null,null,null,1,"",null,null,null,null,null,1,null,null,null,null,null,null,null,null,null,null,0,0,0,0,0,0,0,0,0,0,0,0,null,0,0,0,0,0,null,0,0,null,null,null,null,null,0,0,0,0,0,0,0,0,0,0,0,0,null,null,null,null,null,null,null,null,null,null,null,null,null,null,0]
[147,null,null,null,null,null,null,null,1,"",null,null,null,null,null,1,null,null,null,null,null,null,null,null,null,null,0,0,0,0,0,0,0,0,0,0,0,0,null,0,0,0,0,0,null,0,0,null,null,null,null,null,0,0,0,0,0,0,0,0,0,0,0,0,null,null,null,null,null,null,null,null,null,null,null,null,null,null,0]
[148,null,null,null,null,null,null,null,1,"",null,null,null,null,null,1,null,null,null,null,null,null,null,null,null,null,0,0,0,0,0,0,0,0,0,0,0,0,null,0,0,0,0,0,null,0,0,null,null,null,null,null,0,0,0,0,0,0,0,0,0,0,0,0,null,null,null,null,null,null,null,null,null,null,null,null,null,null,0]
[149,null,null,null,null,null,null,null,1,"",null,null,null,null,null,1,null,null,null,null,null,null,null,null,null,null,0,0,0,0,0,0,0,0,0,0,0,0,null,0,0,0,0,0,null,0,0,null,null,null,null,null,0,0,0,0,0,0,0,0,0,0,0,0,null,null,null,null,null,null,null,null,null,null,null,null,null,null,0]
[150,null,null,null,null,null,null,null,1,"",null,null,null,null,null,1,null,null,null,null,null,null,null,null,null,null,0,0,0,0,0,0,0,0,0,0,0,0,null,0,0,0,0,0,null,0,0,null,null,null,null,null,0,0,0,0,0,0,0,0,0,0,0,0,null,null,null,null,null,null,null,null,null,null,null,null,null,null,0]
[151,null,null,null,null,null,null,null,1,"",null,null,null,null,null,1,null,null,null,null,null,null,null,null,null,null,0,0,0,0,0,0,0,0,0,0,0,0,null,0,0,0,0,0,null,0,0,null,null,null,null,null,0,0,0,0,0,0,0,0,0,0,0,0,null,null,null,null,null,null,null,null,null,null,null,null,null,null,0]
[152,null,null,null,null,null,null,null,1,"",null,null,null,null,null,1,null,null,null,null,null,null,null,null,null,null,0,0,0,0,0,0,0,0,0,0,0,0,null,0,0,0,0,0,null,0,0,null,null,null,null,null,0,0,0,0,0,0,0,0,0,0,0,0,null,null,null,null,null,null,null,null,null,null,null,null,null,null,0]
[153,null,null,null,null,null,null,null,1,"",null,null,null,null,null,1,null,null,null,null,null,null,null,null,null,null,0,0,0,0,0,0,0,0,0,0,0,0,null,0,0,0,0,0,null,0,0,null,null,null,null,null,0,0,0,0,0,0,0,0,0,0,0,0,null,null,null,null,null,null,null,null,null,null,null,null,null,null,0]
[154,null,null,null,null,null,null,null,1,"",null,null,null,null,null,1,null,null,null,null,null,null,null,null,null,null,0,0,0,0,0,0,0,0,0,0,0,0,null,0,0,0,0,0,null,0,0,null,null,null,null,null,0,0,0,0,0,0,0,0,0,0,0,0,null,null,null,null,null,null,null,null,null,null,null,null,null,null,0]
[155,null,null,null,null,null,null,null,1,"",null,null,null,null,null,1,null,null,null,null,null,null,null,null,null,null,0,0,0,0,0,0,0,0,0,0,0,0,null,0,0,0,0,0,null,0,0,null,null,null,null,null,0,0,0,0,0,0,0,0,0,0,0,0,null,null,null,null,null,null,null,null,null,null,null,null,null,null,0]
[156,null,null,null,null,null,null,null,1,"",null,null,null,null,null,1,null,null,null,null,null,null,null,null,null,null,0,0,0,0,0,0,0,0,0,0,0,0,null,0,0,0,0,0,null,0,0,null,null,null,null,null,0,0,0,0,0,0,0,0,0,0,0,0,null,null,null,null,null,null,null,null,null,null,null,null,null,null,0]
[157,null,null,null,null,null,null,null,1,"",null,null,null,null,null,1,null,null,null,null,null,null,null,null,null,null,0,0,0,0,0,0,0,0,0,0,0,0,null,0,0,0,0,0,null,0,0,null,null,null,null,null,0,0,0,0,0,0,0,0,0,0,0,0,null,null,null,null,null,null,null,null,null,null,null,null,null,null,0]
[158,null,null,null,null,null,null,null,1,"",null,null,null,null,null,1,null,null,null,null,null,null,null,null,null,null,0,0,0,0,0,0,0,0,0,0,0,0,null,0,0,0,0,0,null,0,0,null,null,null,null,null,0,0,0,0,0,0,0,0,0,0,0,0,null,null,null,null,null,null,null,null,null,null,null,null,null,null,0]
[159,null,null,null,null,null,null,null,1,"",null,null,null,null,null,1,null,null,null,null,null,null,null,null,null,null,0,0,0,0,0,0,0,0,0,0,0,0,null,0,0,0,0,0,null,0,0,null,null,null,null,null,0,0,0,0,0,0,0,0,0,0,0,0,null,null,null,null,null,null,null,null,null,null,null,null,null,null,0]
[160,null,null,null,null,null,null,null,1,"",null,null,null,null,null,1,null,null,null,null,null,null,null,null,null,null,0,0,0,0,0,0,0,0,0,0,0,0,null,0,0,0,0,0,null,0,0,null,null,null,null,null,0,0,0,0,0,0,0,0,0,0,0,0,null,null,null,null,null,null,null,null,null,null,null,null,null,null,0]
[161,null,null,null,null,null,null,null,1,"",null,null,null,null,null,1,null,null,null,null,null,null,null,null,null,null,0,0,0,0,0,0,0,0,0,0,0,0,null,0,0,0,0,0,null,0,0,null,null,null,null,null,0,0,0,0,0,0,0,0,0,0,0,0,null,null,null,null,null,null,null,null,null,null,null,null,null,null,0]
[162,null,null,null,null,null,null,null,1,"",null,null,null,null,null,1,null,null,null,null,null,null,null,null,null,null,0,0,0,0,0,0,0,0,0,0,0,0,null,0,0,0,0,0,null,0,0,null,null,null,null,null,0,0,0,0,0,0,0,0,0,0,0,0,null,null,null,null,null,null,null,null,null,null,null,null,null,null,0]
[163,null,null,null,null,null,null,null,1,"",null,null,null,null,null,1,null,null,null,null,null,null,null,null,null,null,0,0,0,0,0,0,0,0,0,0,0,0,null,0,0,0,0,0,null,0,0,null,null,null,null,null,0,0,0,0,0,0,0,0,0,0,0,0,null,null,null,null,null,null,null,null,null,null,null,null,null,null,0]
[164,null,null,null,null,null,null,null,1,"",null,null,null,null,null,1,null,null,null,null,null,null,null,null,null,null,0,0,0,0,0,0,0,0,0,0,0,0,null,0,0,0,0,0,null,0,0,null,null,null,null,null,0,0,0,0,0,0,0,0,0,0,0,0,null,null,null,null,null,null,null,null,null,null,null,null,null,null,0]
[165,null,null,null,null,null,null,null,1,"",null,null,null,null,null,1,null,null,null,null,null,null,null,null,null,null,0,0,0,0,0,0,0,0,0,0,0,0,null,0,0,0,0,0,null,0,0,null,null,null,null,null,0,0,0,0,0,0,0,0,0,0,0,0,null,null,null,null,null,null,null,null,null,null,null,null,null,null,0]
[166,null,null,null,null,null,null,null,1,"",null,null,null,null,null,1,null,null,null,null,null,null,null,null,null,null,0,0,0,0,0,0,0,0,0,0,0,0,null,0,0,0,0,0,null,0,0,null,null,null,null,null,0,0,0,0,0,0,0,0,0,0,0,0,null,null,null,null,null,null,null,null,null,null,null,null,null,null,0]
[167,null,null,null,null,null,null,null,1,"",null,null,null,null,null,1,null,null,null,null,null,null,null,null,null,null,0,0,0,0,0,0,0,0,0,0,0,0,null,0,0,0,0,0,null,0,0,null,null,null,null,null,0,0,0,0,0,0,0,0,0,0,0,0,null,null,null,null,null,null,null,null,null,null,null,null,null,null,0]
[168,null,null,null,null,null,null,null,1,"",null,null,null,null,null,1,null,null,null,null,null,null,null,null,null,null,0,0,0,0,0,0,0,0,0,0,0,0,null,0,0,0,0,0,null,0,0,null,null,null,null,null,0,0,0,0,0,0,0,0,0,0,0,0,null,null,null,null,null,null,null,null,null,null,null,null,null,null,0]
[169,null,null,null,null,null,null,null,1,"",null,null,null,null,null,1,null,null,null,null,null,null,null,null,null,null,0,0,0,0,0,0,0,0,0,0,0,0,null,0,0,0,0,0,null,0,0,null,null,null,null,null,0,0,0,0,0,0,0,0,0,0,0,0,null,null,null,null,null,null,null,null,null,null,null,null,null,null,0]
[170,null,null,null,null,null,null,null,1,"",null,null,null,null,null,1,null,null,null,null,null,null,null,null,null,null,0,0,0,0,0,0,0,0,0,0,0,0,null,0,0,0,0,0,null,0,0,null,null,null,null,null,0,0,0,0,0,0,0,0,0,0,0,0,null,null,null,null,null,null,null,null,null,null,null,null,null,null,0]
[171,null,null,null,null,null,null,null,1,"",null,null,null,null,null,1,null,null,null,null,null,null,null,null,null,null,0,0,0,0,0,0,0,0,0,0,0,0,null,0,0,0,0,0,null,0,0,null,null,null,null,null,0,0,0,0,0,0,0,0,0,0,0,0,null,null,null,null,null,null,null,null,null,null,null,null,null,null,0]
[172,null,null,null,null,null,null,null,1,"",null,null,null,null,null,1,null,null,null,null,null,null,null,null,null,null,0,0,0,0,0,0,0,0,0,0,0,0,null,0,0,0,0,0,null,0,0,null,null,null,null,null,0,0,0,0,0,0,0,0,0,0,0,0,null,null,null,null,null,null,null,null,null,null,null,null,null,null,0]
[{"$f":"A187+1","v":173},null,null,null,null,null,null,null,{"$f":"IF(S188>0,S188,DATEDIF(G188,H188,\"M\")+1)","v":1},{"$f":"IF(S188>0,\"※\",\"\")","v":""},null,null,null,null,null,1,null,null,null,null,null,null,null,null,null,null,0,0,0,0,0,0,0,0,0,0,0,0,null,0,0,0,0,0,null,0,0,null,null,null,null,null,0,0,0,0,0,0,0,0,0,0,0,0,null,null,null,null,null,null,null,null,null,null,null,null,null,null,0]
[174,null,null,null,null,null,null,null,1,"",null,null,null,null,null,1,null,null,null,null,null,null,null,null,null,null,0,0,0,0,0,0,0,0,0,0,0,0,null,0,0,0,0,0,null,0,0,null,null,null,null,null,0,0,0,0,0,0,0,0,0,0,0,0,null,null,null,null,null,null,null,null,null,null,null,null,null,null,0]
[175,null,null,null,null,null,null,null,1,"",null,null,null,null,null,1,null,null,null,null,null,null,null,null,null,null,0,0,0,0,0,0,0,0,0,0,0,0,null,0,0,0,0,0,null,0,0,null,null,null,null,null,0,0,0,0,0,0,0,0,0,0,0,0,null,null,null,null,null,null,null,null,null,null,null,null,null,null,0]
[176,null,null,null,null,null,null,null,1,"",null,null,null,null,null,1,null,null,null,null,null,null,null,null,null,null,0,0,0,0,0,0,0,0,0,0,0,0,null,0,0,0,0,0,null,0,0,null,null,null,null,null,0,0,0,0,0,0,0,0,0,0,0,0,null,null,null,null,null,null,null,null,null,null,null,null,null,null,0]
[177,null,null,null,null,null,null,null,1,"",null,null,null,null,null,1,null,null,null,null,null,null,null,null,null,null,0,0,0,0,0,0,0,0,0,0,0,0,null,0,0,0,0,0,null,0,0,null,null,null,null,null,0,0,0,0,0,0,0,0,0,0,0,0,null,null,null,null,null,null,null,null,null,null,null,null,null,null,0]
[178,null,null,null,null,null,null,null,1,"",null,null,null,null,null,1,null,null,null,null,null,null,null,null,null,null,0,0,0,0,0,0,0,0,0,0,0,0,null,0,0,0,0,0,null,0,0,null,null,null,null,null,0,0,0,0,0,0,0,0,0,0,0,0,null,null,null,null,null,null,null,null,null,null,null,null,null,null,0]
[179,null,null,null,null,null,null,null,1,"",null,null,null,null,null,1,null,null,null,null,null,null,null,null,null,null,0,0,0,0,0,0,0,0,0,0,0,0,null,0,0,0,0,0,null,0,0,null,null,null,null,null,0,0,0,0,0,0,0,0,0,0,0,0,null,null,null,null,null,null,null,null,null,null,null,null,null,null,0]
[180,null,null,null,null,null,null,null,1,"",null,null,null,null,null,1,null,null,null,null,null,null,null,null,null,null,0,0,0,0,0,0,0,0,0,0,0,0,null,0,0,0,0,0,null,0,0,null,null,null,null,null,0,0,0,0,0,0,0,0,0,0,0,0,null,null,null,null,null,null,null,null,null,null,null,null,null,null,0]
[181,null,null,null,null,null,null,null,1,"",null,null,null,null,null,1,null,null,null,null,null,null,null,null,null,null,0,0,0,0,0,0,0,0,0,0,0,0,null,0,0,0,0,0,null,0,0,null,null,null,null,null,0,0,0,0,0,0,0,0,0,0,0,0,null,null,null,null,null,null,null,null,null,null,null,null,null,null,0]
[182,null,null,null,null,null,null,null,1,"",null,null,null,null,null,1,null,null,null,null,null,null,null,null,null,null,0,0,0,0,0,0,0,0,0,0,0,0,null,0,0,0,0,0,null,0,0,null,null,null,null,null,0,0,0,0,0,0,0,0,0,0,0,0,null,null,null,null,null,null,null,null,null,null,null,null,null,null,0]
[183,null,null,null,null,null,null,null,1,"",null,null,null,null,null,1,null,null,null,null,null,null,null,null,null,null,0,0,0,0,0,0,0,0,0,0,0,0,null,0,0,0,0,0,null,0,0,null,null,null,null,null,0,0,0,0,0,0,0,0,0,0,0,0,null,null,null,null,null,null,null,null,null,null,null,null,null,null,0]
[184,null,null,null,null,null,null,null,1,"",null,null,null,null,null,1,null,null,null,null,null,null,null,null,null,null,0,0,0,0,0,0,0,0,0,0,0,0,null,0,0,0,0,0,null,0,0,null,null,null,null,null,0,0,0,0,0,0,0,0,0,0,0,0,null,null,null,null,null,null,null,null,null,null,null,null,null,null,0]
[185,null,null,null,null,null,null,null,1,"",null,null,null,null,null,1,null,null,null,null,null,null,null,null,null,null,0,0,0,0,0,0,0,0,0,0,0,0,null,0,0,0,0,0,null,0,0,null,null,null,null,null,0,0,0,0,0,0,0,0,0,0,0,0,null,null,null,null,null,null,null,null,null,null,null,null,null,null,0]
[186,null,null,null,null,null,null,null,1,"",null,null,null,null,null,1,null,null,null,null,null,null,null,null,null,null,0,0,0,0,0,0,0,0,0,0,0,0,null,0,0,0,0,0,null,0,0,null,null,null,null,null,0,0,0,0,0,0,0,0,0,0,0,0,null,null,null,null,null,null,null,null,null,null,null,null,null,null,0]
[null,null,null,null,null,null,null,null,null,null,null,null,null,null,null,null,null,null,null,null,null,null,null,null,null,null,{"$f":"COUNTIF($F202,\"*中標津*\")+COUNTIF($F202,\"*釧路*\")+COUNTIF($F202,\"*帯広*\")","v":0},{"$f":"COUNTIF($F202,\"*丘珠*\")+COUNTIF($F202,\"*新千歳*\")","v":0},{"$f":"COUNTIF($F202,\"*稚内*\")+COUNTIF($F202,\"*礼文*\")+COUNTIF($F202,\"*利尻*\")+COUNTIF($F202,\"*紋別*\")+COUNTIF($F202,\"*女満別*\")+COUNTIF($F202,\"*旭川*\")","v":0},{"$f":"COUNTIF($F202,\"*函館*\")+COUNTIF($F202,\"*奥尻*\")","v":0},{"$f":"IF(COUNTIF($E202,\"*青森*\"),1,0)","v":0},{"$f":"IF(COUNTIF($E202,\"*岩手*\"),1,0)","v":0},{"$f":"IF(COUNTIF($E202,\"*宮城*\"),1,0)","v":0},{"$f":"IF(COUNTIF($E202,\"*秋田*\"),1,0)","v":0},{"$f":"IF(COUNTIF($E202,\"*山形*\"),1,0)","v":0},{"$f":"IF(COUNTIF($E202,\"*福島*\"),1,0)","v":0},{"$f":"IF(COUNTIF($E202,\"*茨城*\"),1,0)","v":0},{"$f":"IF(COUNTIF($E202,\"*栃木*\"),1,0)","v":0},null,{"$f":"IF(COUNTIF($E202,\"*埼玉*\"),1,0)","v":0},{"$f":"IF(COUNTIF($E202,\"*千葉*\"),1,0)","v":0},{"$f":"IF(COUNTIF($E202,\"*東京*\"),1,0)","v":0},{"$f":"IF(COUNTIF($E202,\"*神奈川*\"),1,0)","v":0},{"$f":"IF(COUNTIF($E202,\"*山梨*\"),1,0)","v":0},null,{"$f":"IF(COUNTIF($E202,\"*新潟*\"),1,0)","v":0},{"$f":"IF(COUNTIF($E202,\"*静岡*\"),1,0)","v":0},null,null,null,null,null,{"$f":"IF(COUNTIF($K202,\"*土木*\"),1,0)","v":0},{"$f":"IF(COUNTIF($K202,\"*建築*\"),1,0)","v":0},{"$f":"IF(COUNTIF($K202,\"*電気工事*\"),1,0)","v":0},{"$f":"IF(COUNTIF($K202,\"*管*\"),1,0)","v":0},{"$f":"IF(COUNTIF($K202,\"*鋼構造物工事*\"),1,0)","v":0},0,{"$f":"IF(COUNTIF($K202,\"*塗装*\"),1,0)","v":0},{"$f":"IF(COUNTIF($K202,\"*機械器具*\"),1,0)","v":0},{"$f":"IF(COUNTIF($K202,\"*電気通信*\"),1,0)","v":0},{"$f":"IF(COUNTIF($K202,\"*造園*\"),1,0)","v":0},{"$f":"IF(COUNTIF($K202,\"*水道*\"),1,0)","v":0},{"$f":"IF(COUNTIF($K202,\"*消防*\"),1,0)","v":0},null,null,null,null,null,null,null,null,null,null,null,null,null,null,7]